Invoice ID,Supplier Name,Paid Date,Subjective Code,Subjective Name,Service Area,Cost Centre Name,Invoiced
2504225,24/7 MINIBUSES,09/07/2012,33201,Transport Hire,Environmental Services,SNT Adult Servs,"2,494.00"
2520593,24/7 MINIBUSES,30/07/2012,34402,Clients  Taxi Fares,Environmental Services,SNT Childrens Servs,"3,029.50"
2504227,3D PRIVATE HIRE#CARS,09/07/2012,33201,Transport Hire,Environmental Services,SNT Adult Servs,"6,416.64"
2520595,3D PRIVATE HIRE#CARS,30/07/2012,33201,Transport Hire,Environmental Services,SNT Adult Servs,"5,440.20"
2500897,3M UNITED KINGDOM PLC,12/07/2012,Z1051,Work in Progress Additions,Adult Services,Adult Services Balance Sheet,"3,200.00"
2518829,A E YATES LTD,26/07/2012,Z1051,Work in Progress Additions,Highways,Stores,"88,194.88"
2503664,A P S (SPECIALIST CONTRACTORS) LTD,30/07/2012,20100,Day To Day Maintenance,Property Services,Town Hall,540.00
2514184,A P Y PROPERTY MAINTENANCE,23/07/2012,Z1051,Work in Progress Additions,Housing GRF,Capital  General Fund,"4,385.00"
2505373,A P Y PROPERTY MAINTENANCE,09/07/2012,Z1051,Work in Progress Additions,Housing GRF,Capital  General Fund,"3,446.00"
2505405,A P Y PROPERTY MAINTENANCE,09/07/2012,Z1051,Work in Progress Additions,Housing GRF,Capital  General Fund,"3,295.00"
2513745,A W BRINDLE AND CO LTD,26/07/2012,20400,Garden Maintenance,Environmental Services,Greenspace,"1,279.00"
2498862,A1 STEAM CLEANING & RECOVERY,05/07/2012,52200,Contracted Services,Environmental Services,Transport Support Service,"1,590.00"
2520598,AAB TAXI SERVICES,30/07/2012,33201,Transport Hire,Environmental Services,SNT Adult Servs,"1,350.00"
2504229,AAB TAXI SERVICES,09/07/2012,33201,Transport Hire,Environmental Services,SNT Adult Servs,"1,440.00"
2520596,ABBEY PRIVATE HIRE,30/07/2012,33201,Transport Hire,Environmental Services,SNT Adult Servs,"1,334.00"
2504228,ABBEY PRIVATE HIRE,09/07/2012,33201,Transport Hire,Environmental Services,SNT Adult Servs,"1,380.00"
2505847,ABSTRACT CREATIVE SCREENPRINTING & EMBROIDERY LIMITED,12/07/2012,48203,Marketing,Central Services,Marketing  General,"2,485.65"
2507627,ACCESS DOORS SYSTEMS LTD,16/07/2012,20100,Day To Day Maintenance,Environmental Services,Parking Services  Management,995.00
2507736,ACCESS TO CARE LTD,16/07/2012,52000,Vol Assoc Grants  General,Children's Services,Res Serv Agency Placements,726.00
2507735,ACCESS TO CARE LTD,16/07/2012,52000,Vol Assoc Grants  General,Children's Services,Res Serv Agency Placements,850.00
2507734,ACCESS TO CARE LTD,16/07/2012,52000,Vol Assoc Grants  General,Children's Services,Res Serv Agency Placements,850.00
2507730,ACCESS TO CARE LTD,16/07/2012,52000,Vol Assoc Grants  General,Children's Services,Res Serv Agency Placements,850.00
2499149,ACCESS TO CARE LTD,05/07/2012,52000,Vol Assoc Grants  General,Children's Services,Res Serv Agency Placements,850.00
2507729,ACCESS TO CARE LTD,16/07/2012,52000,Vol Assoc Grants  General,Children's Services,Res Serv Agency Placements,850.00
2499148,ACCESS TO CARE LTD,05/07/2012,52000,Vol Assoc Grants  General,Children's Services,Res Serv Agency Placements,850.00
2499225,ACCESS TO CARE LTD,05/07/2012,52000,Vol Assoc Grants  General,Children's Services,Res Serv Agency Placements,850.00
2499659,ACCESS TO CARE LTD,05/07/2012,52000,Vol Assoc Grants  General,Children's Services,Res Serv Agency Placements,850.00
2499887,ACCESS TO CARE LTD,05/07/2012,52000,Vol Assoc Grants  General,Children's Services,Res Serv Agency Placements,850.00
2500162,ACCESS TO CARE LTD,05/07/2012,52000,Vol Assoc Grants  General,Children's Services,Res Serv Agency Placements,850.00
2500345,ACCESS TO CARE LTD,05/07/2012,52000,Vol Assoc Grants  General,Children's Services,Res Serv Agency Placements,850.00
2500556,ACCESS TO CARE LTD,05/07/2012,52000,Vol Assoc Grants  General,Children's Services,Res Serv Agency Placements,850.00
2500825,ACCESS TO CARE LTD,05/07/2012,52000,Vol Assoc Grants  General,Children's Services,Res Serv Agency Placements,850.00
2514542,ACCESS TO CARE LTD,23/07/2012,52000,Vol Assoc Grants  General,Children's Services,Res Serv Agency Placements,850.00
2514544,ACCESS TO CARE LTD,23/07/2012,52000,Vol Assoc Grants  General,Children's Services,Res Serv Agency Placements,850.00
2522760,ACCESS TO CARE LTD,30/07/2012,52000,Vol Assoc Grants  General,Children's Services,Res Serv Agency Placements,850.00
2522761,ACCESS TO CARE LTD,30/07/2012,52000,Vol Assoc Grants  General,Children's Services,Res Serv Agency Placements,850.00
2522762,ACCESS TO CARE LTD,30/07/2012,52000,Vol Assoc Grants  General,Children's Services,Res Serv Agency Placements,850.00
2522764,ACCESS TO CARE LTD,30/07/2012,52000,Vol Assoc Grants  General,Children's Services,Res Serv Agency Placements,850.00
2522765,ACCESS TO CARE LTD,30/07/2012,52000,Vol Assoc Grants  General,Children's Services,Res Serv Agency Placements,850.00
2514348,ACCESS TO CARE LTD,23/07/2012,52000,Vol Assoc Grants  General,Children's Services,Res Serv Agency Placements,850.00
2514349,ACCESS TO CARE LTD,23/07/2012,52000,Vol Assoc Grants  General,Children's Services,Res Serv Agency Placements,850.00
2514352,ACCESS TO CARE LTD,23/07/2012,52000,Vol Assoc Grants  General,Children's Services,Res Serv Agency Placements,726.00
2514360,ACCESS TO CARE LTD,23/07/2012,52000,Vol Assoc Grants  General,Children's Services,Res Serv Agency Placements,850.00
2514539,ACCESS TO CARE LTD,23/07/2012,52000,Vol Assoc Grants  General,Children's Services,Res Serv Agency Placements,850.00
2522754,ACCESS TO CARE LTD,30/07/2012,52000,Vol Assoc Grants  General,Children's Services,Res Serv Agency Placements,850.00
2501043,ACCESS TO CARE LTD,05/07/2012,52000,Vol Assoc Grants  General,Children's Services,Res Serv Agency Placements,850.00
2507726,ACCESS TO CARE LTD,16/07/2012,52000,Vol Assoc Grants  General,Children's Services,Res Serv Agency Placements,850.00
2520600,ACE MINIBUSES LTD,30/07/2012,33201,Transport Hire,Environmental Services,SNT Adult Servs,"3,352.50"
2504230,ACE MINIBUSES LTD,09/07/2012,33201,Transport Hire,Environmental Services,SNT Adult Servs,"3,759.00"
2498548,ACORN HOUSE FOSTERING SERVICES,02/07/2012,52000,Vol Assoc Grants  General,Children's Services,Res Serv Agency Placements,"5,404.20"
2505898,ACTION FOR CHILDREN,12/07/2012,52200,Contracted Services,Adult Services,Supporting People  Capital Financing,"29,938.02"
2520650,ADASS#ASSOCIATION OF DIRECTORS OF SOCIAL SERVICES,30/07/2012,47200,General Subscriptions,Adult Services,AD Service Strategy & Regulation,"1,535.00"
2518456,ADDICTION DEPENDENCY SOLUTIONS#ADS,30/07/2012,52200,Contracted Services,Adult Services,Drugs Pooled Treatment Budget,975.00
2505687,ADDICTION DEPENDENCY SOLUTIONS#ADS,09/07/2012,54301,Residential Provision,Adult Services,Alcohol Rehab Budget,"2,050.91"
2505690,ADDICTION DEPENDENCY SOLUTIONS#ADS,09/07/2012,54301,Residential Provision,Adult Services,Alcohol Rehab Budget,"2,132.20"
2505692,ADDICTION DEPENDENCY SOLUTIONS#ADS,09/07/2012,54301,Residential Provision,Adult Services,Alcohol Rehab Budget,"4,315.92"
2505693,ADDICTION DEPENDENCY SOLUTIONS#ADS,09/07/2012,54301,Residential Provision,Adult Services,Alcohol Rehab Budget,"4,845.77"
2505696,ADDICTION DEPENDENCY SOLUTIONS#ADS,09/07/2012,54301,Residential Provision,Adult Services,Alcohol Rehab Budget,"4,275.72"
2505910,ADDICTION DEPENDENCY SOLUTIONS#ADS,12/07/2012,52200,Contracted Services,Adult Services,Supporting People  Capital Financing,"16,961.44"
2507629,ADVANCED BUILDING (NW) LTD,16/07/2012,20100,Day To Day Maintenance,Property Services,Magistrates courts  Le Mans Crescent,"3,600.00"
2507119,ADVANCED BUILDING (NW) LTD,12/07/2012,20100,Day To Day Maintenance,Property Services,Admin Buildings  General,581.00
2514196,AGR BUILDING & FENCING CONTRACTORS LIMITED,23/07/2012,Z1051,Work in Progress Additions,Housing GRF,Capital  General Fund,"3,790.00"
2522450,AGR BUILDING & FENCING CONTRACTORS LIMITED,30/07/2012,20100,Day To Day Maintenance,Housing GRF,Housing and Public Health,"7,604.93"
2506458,AGR CARE SERVICES,12/07/2012,52000,Vol Assoc Grants  General,Children's Services,Res Serv Agency Placements,"11,160.00"
2506459,AGR CARE SERVICES,12/07/2012,52000,Vol Assoc Grants  General,Children's Services,Res Serv Agency Placements,"11,460.00"
2506569,AIDAPT BATHROOMS LTD,19/07/2012,44051,Clients Aids & Adaptations,Adult Services,ICES,714.30
2513505,AIDAPT BATHROOMS LTD,23/07/2012,44051,Clients Aids & Adaptations,Adult Services,ICES,"1,683.00"
2502712,AIR STRUCTURES INTERNATIONAL LTD,19/07/2012,40100,Operational Equipment Purchase,Chief Executives Department,Neighbourhood Mgt and Area Working Devolved,"1,350.00"
2504232,REDACTED - PERSONAL DATA#ALANS CAB,09/07/2012,33201,Transport Hire,Environmental Services,SNT Adult Servs,690.00
2520605,REDACTED - PERSONAL DATA#ALANS CAB,30/07/2012,33201,Transport Hire,Environmental Services,SNT Adult Servs,690.00
2505797,ALAN GREGORY MUSIC & MUSICAL INSTRUMENTS,23/07/2012,40610,Direct Materials,Children's Services,Music Serv  Events and External Funding,"3,349.45"
2520606,ALIMS MINIBUSES/ REDACTED - PERSONAL DATA,30/07/2012,33201,Transport Hire,Environmental Services,SNT Adult Servs,"1,215.00"
2504233,ALIMS MINIBUSES/ REDACTED - PERSONAL DATA,09/07/2012,33201,Transport Hire,Environmental Services,SNT Adult Servs,"1,134.00"
2513850,ALLIANCE DISPOSABLES LTD,26/07/2012,26002,Other Materials,Environmental Services,Building Cleaning,"1,222.50"
2503774,ALLIANCE DISPOSABLES LTD,19/07/2012,26000,Cleaning Materials,Property Services,Operational Facilities Management,"1,851.00"
2505683,ALLPAY.NET LTD,09/07/2012,48509,Other Fees,Finance Department,CSD Cashiers,"2,057.56"
2505677,ALLPAY.NET LTD,09/07/2012,48509,Other Fees,Finance Department,CSD Cashiers,516.12
2505680,ALLPAY.NET LTD,09/07/2012,48509,Other Fees,Finance Department,CSD Cashiers,"5,559.28"
2520959,ALLSTAR BUSINESS SOLUTIONS,30/07/2012,31301,Vehicle Fuel,Adult Services,ICES,541.16
2520959,ALLSTAR BUSINESS SOLUTIONS,30/07/2012,31301,Vehicle Fuel,Children's Services,Positive Activities,532.44
2520959,ALLSTAR BUSINESS SOLUTIONS,30/07/2012,31301,Vehicle Fuel,Environmental Services,Activities and Operations,"16,582.86"
2520959,ALLSTAR BUSINESS SOLUTIONS,30/07/2012,31301,Vehicle Fuel,Environmental Services,Bereavement Services,651.13
2520959,ALLSTAR BUSINESS SOLUTIONS,30/07/2012,31301,Vehicle Fuel,Environmental Services,Highway Works  Unallocated Costs,"5,306.48"
2520959,ALLSTAR BUSINESS SOLUTIONS,30/07/2012,31301,Vehicle Fuel,Environmental Services,Security Services,775.18
2520959,ALLSTAR BUSINESS SOLUTIONS,30/07/2012,31301,Vehicle Fuel,Environmental Services,SNT Adult Servs,"5,250.35"
2520959,ALLSTAR BUSINESS SOLUTIONS,30/07/2012,31301,Vehicle Fuel,Environmental Services,SNT Childrens Servs,"3,381.85"
2520959,ALLSTAR BUSINESS SOLUTIONS,30/07/2012,31301,Vehicle Fuel,Environmental Services,Transport Support Service,565.97
2520959,ALLSTAR BUSINESS SOLUTIONS,30/07/2012,31301,Vehicle Fuel,Environmental Services,Waste,"38,313.01"
2509472,ALLSTAR BUSINESS SOLUTIONS,16/07/2012,31301,Vehicle Fuel,Adult Services,ICES,531.82
2509472,ALLSTAR BUSINESS SOLUTIONS,16/07/2012,31301,Vehicle Fuel,Environmental Services,Activities and Operations,"9,848.62"
2509472,ALLSTAR BUSINESS SOLUTIONS,16/07/2012,31301,Vehicle Fuel,Environmental Services,Greenspace,"1,169.18"
2509472,ALLSTAR BUSINESS SOLUTIONS,16/07/2012,31301,Vehicle Fuel,Environmental Services,Highway Works  Unallocated Costs,"3,354.14"
2509472,ALLSTAR BUSINESS SOLUTIONS,16/07/2012,31301,Vehicle Fuel,Environmental Services,SNT Adult Servs,"3,954.05"
2509472,ALLSTAR BUSINESS SOLUTIONS,16/07/2012,31301,Vehicle Fuel,Environmental Services,SNT Childrens Servs,"1,903.22"
2509472,ALLSTAR BUSINESS SOLUTIONS,16/07/2012,31301,Vehicle Fuel,Environmental Services,Waste,"24,558.70"
2503118,ALLSTAR BUSINESS SOLUTIONS,05/07/2012,31301,Vehicle Fuel,Adult Services,ICES,552.34
2503118,ALLSTAR BUSINESS SOLUTIONS,05/07/2012,31301,Vehicle Fuel,Environmental Services,Assets,"8,890.91"
2503118,ALLSTAR BUSINESS SOLUTIONS,05/07/2012,31301,Vehicle Fuel,Environmental Services,Couriers,"3,395.43"
2503118,ALLSTAR BUSINESS SOLUTIONS,05/07/2012,31301,Vehicle Fuel,Environmental Services,Greenspace,532.96
2503118,ALLSTAR BUSINESS SOLUTIONS,05/07/2012,31301,Vehicle Fuel,Environmental Services,Highway Works  Unallocated Costs,"2,435.29"
2503118,ALLSTAR BUSINESS SOLUTIONS,05/07/2012,31301,Vehicle Fuel,Environmental Services,Parking Services  Management,738.54
2503118,ALLSTAR BUSINESS SOLUTIONS,05/07/2012,31301,Vehicle Fuel,Environmental Services,SNT Childrens Servs,"1,466.58"
2503118,ALLSTAR BUSINESS SOLUTIONS,05/07/2012,31301,Vehicle Fuel,Environmental Services,Waste,"26,441.19"
2512848,ALPHA GRAPHICS,19/07/2012,48203,Marketing,Central Services,Marketing  General,"1,845.50"
2513089,ALSECURE GROUP LTD,26/07/2012,44401,Other Security Expenses,Housing GRF,Benjamin Court Accommodation,839.16
2505916,ANCHOR TRUST#2,12/07/2012,52200,Contracted Services,Adult Services,Supporting People  Capital Financing,"4,039.77"
2504240,REDACTED - PERSONAL DATA,09/07/2012,33201,Transport Hire,Environmental Services,SNT Adult Servs,640.00
2519362,ANGLIA DNA SERVICES LIMITED,26/07/2012,48509,Other Fees,Children's Services,Management Team,720.00
2503101,ANGLIA DNA SERVICES LIMITED,05/07/2012,48509,Other Fees,Children's Services,Management Team,690.00
2519806,APCOA PARKING UK LTD#3,30/07/2012,22002,Management Fee,Environmental Services,Parking Services  Off Street,"9,472.05"
2519541,APCOA PARKING UK LTD#3,26/07/2012,22006,Rent of Storage Facilities,Property Services,CED Admin BuildBow St Storage,"3,779.67"
2520531,APSE,30/07/2012,22002,Management Fee,Environmental Services,DMT,"3,435.00"
2517446,ARCO LIMITED,23/07/2012,42001,Uniforms,Environmental Services,SNT Childrens Servs,581.83
2502405,ARCTIC REFRIGERATION (BOLTON) LTD,05/07/2012,40100,Operational Equipment Purchase,Adult Services,OA  Community Meals,640.00
2504236,REDACTED - PERSONAL DATA,09/07/2012,33201,Transport Hire,Environmental Services,SNT Adult Servs,"2,642.00"
2520844,REDACTED - PERSONAL DATA,30/07/2012,33201,Transport Hire,Environmental Services,SNT Adult Servs,"1,874.25"
2513497,ARJOHUNTLEIGH,23/07/2012,40100,Operational Equipment Purchase,Adult Services,OA  Residential Services Miscellaneous,"2,000.00"
2503755,ASDA PHARMACY,09/07/2012,52000,Vol Assoc Grants  General,Adult Services,Drugs Pooled Treatment Budget,660.90
2515717,ASDA PHARMACY,23/07/2012,52200,Contracted Services,Adult Services,Drugs Pooled Treatment Budget,552.20
2513761,ASH HIRE & SALES LTD,26/07/2012,Z6008,Expense AP Accrual,Bolton MBC Balance Sheet,Bolton MBC Balance Sheet,885.00
2507727,ASH HIRE & SALES LTD,16/07/2012,Z6008,Expense AP Accrual,Bolton MBC Balance Sheet,Bolton MBC Balance Sheet,647.50
2520594,REDACTED - PERSONAL DATA,30/07/2012,33201,Transport Hire,Environmental Services,SNT Adult Servs,"1,672.00"
2504226,REDACTED - PERSONAL DATA,09/07/2012,33201,Transport Hire,Environmental Services,SNT Adult Servs,"2,805.06"
2512847,ASSOCIATED CLEANING CONTRACTORS,19/07/2012,20100,Day To Day Maintenance,Property Services,Thicketford Centre,720.00
2512851,ASSOCIATED CLEANING CONTRACTORS,19/07/2012,20100,Day To Day Maintenance,Property Services,Thicketford Centre,720.00
2507127,ASSOCIATED CLEANING CONTRACTORS,12/07/2012,26100,Window Cleaning,Property Services,Town Hall,525.00
2498313,ASSOCIATED CLEANING CONTRACTORS,02/07/2012,52200,Contracted Services,Housing GRF,Access & Advice Housing Options Centre,810.35
2509281,ASSOCIATED CLEANING CONTRACTORS,16/07/2012,20100,Day To Day Maintenance,Children's Services,Technical Innovation Centre,"1,959.00"
2514211,ATG ACCESS LTD,30/07/2012,20501,Engineering Work,Environmental Services,Highway Services,602.78
2499134,ATLANTIC TRAVEL (GB) LTD,05/07/2012,33201,Transport Hire,Environmental Services,SNT Adult Servs,"2,808.00"
2517436,ATLANTIC TRAVEL (GB) LTD,23/07/2012,34405,Clients  Swimming Fares,Environmental Services,SNT Childrens Servs,"2,484.00"
2504234,ATLANTIS PRIVATE HIRE,09/07/2012,33201,Transport Hire,Environmental Services,SNT Adult Servs,"4,573.50"
2520609,ATLANTIS PRIVATE HIRE,30/07/2012,33201,Transport Hire,Environmental Services,SNT Adult Servs,739.50
2511319,AUDIOGO LIMITED,23/07/2012,40753,Book Fund Expenditure,Finance Department,Libraries Info. Services,556.96
2515834,AUTISTIC SOCIETY GREATER MANCHESTER AREA,23/07/2012,52200,Contracted Services,Children's Services,Admin Commissioning,"2,625.00"
2520716,AUTOMATIC ALARMS LIMITED,30/07/2012,20100,Day To Day Maintenance,Property Services,Thicketford Centre,594.94
2512880,AUTOMATIC ALARMS LIMITED,19/07/2012,20100,Day To Day Maintenance,Children's Services,Disability Serv Trackside Approach,842.11
2513090,AUTOMATIC ALARMS LIMITED,19/07/2012,48629,Miscellaneous Expenses,Housing GRF,Benjamin Court Accommodation,887.52
2513752,B & M DAVIES (PLANT HIRE) LTD,23/07/2012,Z6008,Expense AP Accrual,Bolton MBC Balance Sheet,Bolton MBC Balance Sheet,647.50
2513748,B & M DAVIES (PLANT HIRE) LTD,26/07/2012,Z6008,Expense AP Accrual,Bolton MBC Balance Sheet,Bolton MBC Balance Sheet,923.50
2515527,B & M DAVIES (PLANT HIRE) LTD,30/07/2012,Z6008,Expense AP Accrual,Bolton MBC Balance Sheet,Bolton MBC Balance Sheet,687.50
2515523,B & M DAVIES (PLANT HIRE) LTD,30/07/2012,Z6008,Expense AP Accrual,Bolton MBC Balance Sheet,Bolton MBC Balance Sheet,694.50
2507113,B & M DAVIES (PLANT HIRE) LTD,19/07/2012,Z6008,Expense AP Accrual,Bolton MBC Balance Sheet,Bolton MBC Balance Sheet,"1,032.50"
2515529,B & M DAVIES (PLANT HIRE) LTD,30/07/2012,33202,Plant Hire,Environmental Services,Depots,918.31
2503903,B & M DAVIES (PLANT HIRE) LTD,16/07/2012,33202,Plant Hire,Environmental Services,Bereavement Services,662.30
2513828,BARNARDOS,26/07/2012,52000,Vol Assoc Grants  General,Children's Services,Res Serv Agency Placements,"1,874.29"
2513507,BARRIER SURVEILLANCE SYSTEMS LTD,23/07/2012,45410,ICT Decommissioning Costs,Development & Regen,IEP Bid,"1,075.00"
2507122,BARTON GRANGE LANDSCAPES,30/07/2012,Z1051,Work in Progress Additions,Environmental Services,Environmental Services Balance sheet,"4,500.00"
2505918,BASE LTD#2,12/07/2012,52200,Contracted Services,Adult Services,Supporting People  Capital Financing,"16,004.70"
2502859,BENCHMARK BUILDING SUPPLIES LTD,12/07/2012,Z6008,Expense AP Accrual,Bolton MBC Balance Sheet,Bolton MBC Balance Sheet,552.64
2505854,BEST PRACTICE GROUP PLC,11/07/2012,48510,Consultancy Fees,Finance Department,IT Contract ReTender,"18,366.35"
2518842,BETHELL CONSTRUCTION LTD,26/07/2012,Z1051,Work in Progress Additions,Highways,Stores,"7,709.82"
2506430,BETHELL CONSTRUCTION LTD,12/07/2012,Z1051,Work in Progress Additions,Highways,Stores,"4,368.12"
2519366,BETTER CHOICES LTD#CAREERS SOLUTIONS,30/07/2012,45430,Computer Software,Children's Services,Admin Info Mgemnt Unit,"22,456.35"
2509283,BHE SERVICES (BOLTON) LTD,16/07/2012,Z1051,Work in Progress Additions,Housing GRF,Capital  General Fund,"2,500.00"
2514299,BICKFORD TRUCK HIRE LTD,30/07/2012,33201,Transport Hire,Environmental Services,Transport Support Service,590.00
2498571,BICKFORD TRUCK HIRE LTD,02/07/2012,33201,Transport Hire,Environmental Services,Transport Support Service,770.00
2506187,BIRKDALE DESIGN LTD,12/07/2012,40150,Office Furniture Purchase,Housing GRF,Furnished Tenancies,774.80
2506439,BIRKDALE DESIGN LTD,12/07/2012,40150,Office Furniture Purchase,Housing GRF,Furnished Tenancies,774.80
2506442,BIRKDALE DESIGN LTD,12/07/2012,40150,Office Furniture Purchase,Housing GRF,Furnished Tenancies,774.80
2522651,BIRKDALE DESIGN LTD,30/07/2012,40150,Office Furniture Purchase,Housing GRF,Furnished Tenancies,774.80
2522655,BIRKDALE DESIGN LTD,30/07/2012,40150,Office Furniture Purchase,Housing GRF,Furnished Tenancies,974.48
2522659,BIRKDALE DESIGN LTD,30/07/2012,40150,Office Furniture Purchase,Housing GRF,Furnished Tenancies,630.24
2522662,BIRKDALE DESIGN LTD,30/07/2012,40150,Office Furniture Purchase,Housing GRF,Furnished Tenancies,918.32
2498316,BIRKDALE DESIGN LTD,02/07/2012,40150,Office Furniture Purchase,Housing GRF,Furnished Tenancies,774.80
2498317,BIRKDALE DESIGN LTD,02/07/2012,40150,Office Furniture Purchase,Housing GRF,Furnished Tenancies,774.80
2498319,BIRKDALE DESIGN LTD,02/07/2012,40150,Office Furniture Purchase,Housing GRF,Furnished Tenancies,859.04
2498320,BIRKDALE DESIGN LTD,02/07/2012,40150,Office Furniture Purchase,Housing GRF,Furnished Tenancies,859.04
2522347,BIRKDALE DESIGN LTD,30/07/2012,40150,Office Furniture Purchase,Housing GRF,Furnished Tenancies,774.80
2522360,BIRKDALE DESIGN LTD,30/07/2012,40150,Office Furniture Purchase,Housing GRF,Furnished Tenancies,774.80
2510356,BIRKDALE DESIGN LTD,16/07/2012,40150,Office Furniture Purchase,Housing GRF,Furnished Tenancies,812.24
2510365,BIRKDALE DESIGN LTD,16/07/2012,40150,Office Furniture Purchase,Housing GRF,Furnished Tenancies,974.48
2517322,BIRKDALE DESIGN LTD,23/07/2012,40150,Office Furniture Purchase,Housing GRF,Furnished Tenancies,718.64
2517323,BIRKDALE DESIGN LTD,23/07/2012,40150,Office Furniture Purchase,Housing GRF,Furnished Tenancies,859.04
2517325,BIRKDALE DESIGN LTD,23/07/2012,40150,Office Furniture Purchase,Housing GRF,Furnished Tenancies,859.04
2517326,BIRKDALE DESIGN LTD,23/07/2012,40150,Office Furniture Purchase,Housing GRF,Furnished Tenancies,634.40
2517311,BIRKDALE DESIGN LTD,23/07/2012,40150,Office Furniture Purchase,Housing GRF,Furnished Tenancies,640.00
2517313,BIRKDALE DESIGN LTD,23/07/2012,40150,Office Furniture Purchase,Housing GRF,Furnished Tenancies,774.80
2517314,BIRKDALE DESIGN LTD,23/07/2012,40150,Office Furniture Purchase,Housing GRF,Furnished Tenancies,859.04
2517315,BIRKDALE DESIGN LTD,23/07/2012,40150,Office Furniture Purchase,Housing GRF,Furnished Tenancies,834.08
2517317,BIRKDALE DESIGN LTD,23/07/2012,40150,Office Furniture Purchase,Housing GRF,Furnished Tenancies,774.80
2517318,BIRKDALE DESIGN LTD,23/07/2012,40150,Office Furniture Purchase,Housing GRF,Furnished Tenancies,774.80
2517319,BIRKDALE DESIGN LTD,23/07/2012,40150,Office Furniture Purchase,Housing GRF,Furnished Tenancies,974.48
2517321,BIRKDALE DESIGN LTD,23/07/2012,40150,Office Furniture Purchase,Housing GRF,Furnished Tenancies,686.40
2518743,BIRKDALE DESIGN LTD,26/07/2012,40150,Office Furniture Purchase,Housing GRF,Furnished Tenancies,918.32
2518864,BIRKDALE DESIGN LTD,26/07/2012,40150,Office Furniture Purchase,Housing GRF,Furnished Tenancies,745.00
2513658,BLACK SHEEP PRESS,23/07/2012,48526,Strategic Projects,Children's Services,Early Years & Childcare,"6,400.00"
2509273,BLAKELEY TONGE & PARTNER LTD,16/07/2012,Z1051,Work in Progress Additions,Housing GRF,Capital  General Fund,"5,000.00"
2513867,BLAKELEY TONGE & PARTNER LTD,23/07/2012,Z1051,Work in Progress Additions,Housing GRF,Capital  General Fund,"10,104.13"
2498637,BLAKELEY TONGE & PARTNER LTD,02/07/2012,Z1051,Work in Progress Additions,Property Services,Corporate Property Capital Project Transfers to Other Projects,"172,035.64"
2498629,BLAKELEY TONGE & PARTNER LTD,02/07/2012,Z1051,Work in Progress Additions,Property Services,Corporate Property Capital Project Transfers to Other Projects,"23,641.70"
2513019,BOLMOOR INDUSTRIES LTD,19/07/2012,42001,Uniforms,Environmental Services,SNT Other,827.25
2515676,BOLTON & DISTRICT CITIZENS ADVICE BUREAU LTD,23/07/2012,47103,Miscellaneous Grants,Chief Executives Department,Voluntary Sector Grants,"43,218.00"
2506420,BOLTON AT HOME#137,12/07/2012,Z1051,Work in Progress Additions,Development & Regen,Development & Regeneration Capital,"16,794.75"
2515568,BOLTON AT HOME#137,23/07/2012,Z5259,AR Unapplied Receipts Refunds,Environmental Services,Environmental Services Balance sheet,"71,104.42"
2507491,BOLTON AT HOME#137,12/07/2012,48509,Other Fees,Housing GRF,Benjamin Court Accommodation,"2,829.61"
2507491,BOLTON AT HOME#137,12/07/2012,48509,Other Fees,Housing GRF,Dispersed Properties,570.30
2505481,BOLTON AT HOME#137,09/07/2012,22201,Water Charges  Unmetered,Housing GRF,Communal Services Capital And Admin.,"12,749.55"
2505466,BOLTON AT HOME#137,09/07/2012,21100,Electricity  General,Housing GRF,Communal Services Capital And Admin.,"14,199.94"
2505466,BOLTON AT HOME#137,09/07/2012,21200,Gas  General,Housing GRF,Communal Services Capital And Admin.,"1,026.03"
2505445,BOLTON AT HOME#137,09/07/2012,21100,Electricity  General,Housing GRF,Communal Services Capital And Admin.,"8,373.13"
2505445,BOLTON AT HOME#137,09/07/2012,21200,Gas  General,Housing GRF,Communal Services Capital And Admin.,735.19
2507490,BOLTON AT HOME#137,12/07/2012,48509,Other Fees,Housing GRF,SHU Directorate,"100,912.00"
2520906,BOLTON BULLETS,30/07/2012,52200,Contracted Services,Children's Services,Admin Commissioning,"1,250.00"
2513481,BOLTON CARERS SUPPORT,19/07/2012,52200,Contracted Services,Adult Services,OA  Carers Grant,"23,500.00"
2506515,BOLTON CARPET WAREHOUSE,16/07/2012,40150,Office Furniture Purchase,Housing GRF,Furnished Tenancies,622.21
2506522,BOLTON CARPET WAREHOUSE,16/07/2012,40150,Office Furniture Purchase,Housing GRF,Furnished Tenancies,530.62
2506538,BOLTON CARPET WAREHOUSE,16/07/2012,40150,Office Furniture Purchase,Housing GRF,Furnished Tenancies,622.21
2522429,BOLTON CARPET WAREHOUSE,30/07/2012,40150,Office Furniture Purchase,Housing GRF,Furnished Tenancies,700.74
2522443,BOLTON CARPET WAREHOUSE,30/07/2012,40150,Office Furniture Purchase,Housing GRF,Furnished Tenancies,700.74
2522446,BOLTON CARPET WAREHOUSE,30/07/2012,40150,Office Furniture Purchase,Housing GRF,Furnished Tenancies,700.74
2513098,BOLTON CARPET WAREHOUSE,23/07/2012,40150,Office Furniture Purchase,Housing GRF,Furnished Tenancies,622.21
2513099,BOLTON CARPET WAREHOUSE,23/07/2012,40150,Office Furniture Purchase,Housing GRF,Furnished Tenancies,622.21
2522393,BOLTON CARPET WAREHOUSE,30/07/2012,40150,Office Furniture Purchase,Housing GRF,Furnished Tenancies,728.77
2513108,BOLTON COMMUNITY LEISURE LTD,23/07/2012,52200,Contracted Services,Development & Regen,The Leisure Trust,"218,812.29"
2505630,BOLTON COMMUNITY TRANSPORT & FURNITURE SERVICES#BCT & FS,09/07/2012,47103,Miscellaneous Grants,Chief Executives Department,Voluntary Sector Grants,"5,820.25"
2513838,BOLTON CVS#BOLTON COMMUNITY & VOLUNTARY SERVICES,19/07/2012,52200,Contracted Services,Adult Services,OA  Carers Grant,"5,463.00"
2509130,BOLTON KIDZ2GETHER,16/07/2012,52200,Contracted Services,Children's Services,Admin Commissioning,"13,749.00"
2519423,BOLTON LADS & GIRLS CLUB,26/07/2012,48203,Marketing,Central Services,Marketing Committed Monies,"15,000.00"
2509683,BOLTON LADS & GIRLS CLUB,16/07/2012,52200,Contracted Services,Children's Services,Admin Commissioning,"54,900.00"
2504302,BOLTON LINK JOBAXI LTD,09/07/2012,33201,Transport Hire,Environmental Services,SNT Adult Servs,"7,505.55"
2520824,BOLTON LINK JOBAXI LTD,30/07/2012,33201,Transport Hire,Environmental Services,SNT Adult Servs,"6,113.68"
2519495,BOLTON MIDDLEBROOK LEISURE TRUST,26/07/2012,46003,Staff Conference Expenses,Children's Services,Children�s Workforce Planning & Development,600.00
2511397,BOLTON PRIMARY CARE TRUST#12#BOLTON PCT,19/07/2012,52200,Contracted Services,Adult Services,Drugs and Alcohol Section 75 Agreement,"97,000.00"
2513824,BOLTON QUAKER MEETING#SOCIETY OF FRIENDS (QUAKERS),19/07/2012,22004,Room Hire,Adult Services,MH Day Care Park Lodge,720.00
2513822,BOLTON QUAKER MEETING#SOCIETY OF FRIENDS (QUAKERS),19/07/2012,22004,Room Hire,Adult Services,MH Day Care Park Lodge,609.00
2506231,BOLTON STONE RESTORATION LTD,12/07/2012,Z1051,Work in Progress Additions,Environmental Services,Environmental Services Balance sheet,"1,505.45"
2520670,BOLTON STONE RESTORATION LTD,30/07/2012,20100,Day To Day Maintenance,Property Services,Laburnum Lodge EPH,841.55
2506236,BOLTON STONE RESTORATION LTD,12/07/2012,20100,Day To Day Maintenance,Environmental Services,Activities and Operations,891.66
2504239,BOLTON TAXIS LTD,09/07/2012,33201,Transport Hire,Environmental Services,SNT Adult Servs,"3,866.50"
2520623,BOLTON TAXIS LTD,30/07/2012,33201,Transport Hire,Environmental Services,SNT Adult Servs,"2,883.90"
2515680,BOLTON TRINITY CENTRE LTD,23/07/2012,47103,Miscellaneous Grants,Chief Executives Department,Voluntary Sector Grants,"11,264.00"
2500112,BOLTON WISE LTD#EATWISE#WISEWORKS#WISETRAINING (14-19),05/07/2012,52200,Contracted Services,Environmental Services,Assets,941.85
2499626,BOLTON WISE LTD#EATWISE#WISEWORKS#WISETRAINING (14-19),05/07/2012,Z1051,Work in Progress Additions,Environmental Services,Environmental Services Balance sheet,595.19
2505945,BOLTON YOUNG PERSONS HOUSING SCHEME#BYPHS,12/07/2012,52200,Contracted Services,Adult Services,Supporting People  Capital Financing,"15,632.25"
2510353,BOWLAND PSYCHOLOGICAL SERVICES LTD,16/07/2012,48509,Other Fees,Children's Services,Management Team,"1,204.50"
2505647,BRADSHAW GASS & HOPE#1,09/07/2012,48509,Other Fees,Property Services,Accomm Rationalisation Strategy,"2,475.00"
2505673,BRADSHAW GASS & HOPE#1,09/07/2012,Z1051,Work in Progress Additions,Property Services,Corporate Property Capital Project Transfers to Other Projects,"10,262.67"
2505671,BRADSHAW GASS & HOPE#1,09/07/2012,Z1051,Work in Progress Additions,Property Services,Corporate Property Capital Project Transfers to Other Projects,"6,264.54"
2510898,BRADSHAW GASS & HOPE#1,19/07/2012,48509,Other Fees,Property Services,Corporate Property Revenue Project Transfers to Other Projects,"1,190.00"
2512873,BRADSHAW GASS & HOPE#1,19/07/2012,52200,Contracted Services,Property Services,Projects,"5,124.80"
2512867,BRADSHAW GASS & HOPE#1,19/07/2012,52200,Contracted Services,Property Services,Projects,"4,279.35"
2504241,BRIDGE PRIVATE HIRE#MR I ARSHAD,09/07/2012,33201,Transport Hire,Environmental Services,SNT Adult Servs,"1,001.00"
2520625,BRIDGE PRIVATE HIRE#MR I ARSHAD,30/07/2012,33201,Transport Hire,Environmental Services,SNT Adult Servs,"1,232.00"
2498618,BRIDGESTONE DEVELOPMENTS LIMITED,02/07/2012,22202,Sewerage & Env'mental Servs,Housing GRF,HMO Licence Fees,"3,000.00"
2507014,BRIGHT DIRECTION TRAINING LIMITED,19/07/2012,44056,Clients Training Courses,Development & Regen,Coalfields,"10,500.00"
2510755,BRITISH GAS BUSINESS,16/07/2012,21200,Gas  General,Housing GRF,Communal Services Capital And Admin.,791.82
2512913,BRITISH GAS BUSINESS,26/07/2012,21200,Gas  General,Environmental Services,Mngmnt & Admin Overhead,"6,710.65"
2510839,BRITISH GAS BUSINESS,16/07/2012,21200,Gas  General,Environmental Services,Mngmnt & Admin Overhead,"19,090.06"
2510839,BRITISH GAS BUSINESS,16/07/2012,21200,Gas  General,Property Services,Admin Buildings  General,"13,050.44"
2510839,BRITISH GAS BUSINESS,16/07/2012,21200,Gas  General,Property Services,Adult's General,"18,253.56"
2510839,BRITISH GAS BUSINESS,16/07/2012,21200,Gas  General,Property Services,Castle Hill,"1,864.84"
2510839,BRITISH GAS BUSINESS,16/07/2012,21200,Gas  General,Central Corporate,Land & Property,997.60
2510760,BRITISH GAS BUSINESS,16/07/2012,21100,Electricity  General,Environmental Services,Mngmnt & Admin Overhead,526.87
2519414,BRITISH GAS BUSINESS,26/07/2012,21100,Electricity  General,Housing Revenue Account,Housing Revenue Account,"2,780.54"
2517385,BRITISH GAS TRADING LIMITED,23/07/2012,21200,Gas  General,Housing GRF,Communal Services Capital And Admin.,593.36
2519451,BRITISH GAS TRADING LIMITED,26/07/2012,21200,Gas  General,Housing GRF,Communal Services Capital And Admin.,721.95
2522682,BRITISH GAS TRADING LIMITED,30/07/2012,21200,Gas  General,Housing GRF,Communal Services Capital And Admin.,"1,300.17"
2513316,BRITISH RED CROSS SOCIETY#1,23/07/2012,48203,Marketing,Central Services,Marketing  General,"2,196.00"
2512892,BROOKE EDGLEY SPECIALIST TECHNICAL SVS LTD#BEST,19/07/2012,20100,Day To Day Maintenance,Property Services,Jubilee Centre,677.00
2510385,BROTHERS OF CHARITY SERVICES,16/07/2012,52200,Contracted Services,Adult Services,LD Purchaser Domiciliary Care,"2,124.40"
2507616,BROTHERS OF CHARITY SERVICES,16/07/2012,52200,Contracted Services,Adult Services,LD Purchaser Domiciliary Care,"2,124.40"
2507615,BROTHERS OF CHARITY SERVICES,16/07/2012,52200,Contracted Services,Adult Services,LD Purchaser Day Services,801.16
2507615,BROTHERS OF CHARITY SERVICES,16/07/2012,52200,Contracted Services,Adult Services,LD Purchaser Domiciliary Care,937.44
2522687,BSS CONSTRUCTION LIMITED,30/07/2012,20100,Day To Day Maintenance,Central Corporate,Bolton Sports Village,"5,755.00"
2518889,BT GLOBAL SERVICES,26/07/2012,45407,Computer Peripherals,Adult Services,AD  IT,723.06
2506467,BT PLC,12/07/2012,25105,Other Security,Environmental Services,NCP CCTV,"5,315.25"
2502783,BUCHANAN COMPUTING,05/07/2012,45431,Computer Software Licences,Environmental Services,Management & Support,"2,976.00"
2498677,C HORROCKS & SONS LTD,02/07/2012,53100,Agency Staff  Fulltime,Property Services,Operational Facilities Management,542.92
2506184,C HORROCKS & SONS LTD,12/07/2012,20100,Day To Day Maintenance,Property Services,Town Hall,545.97
2510831,C HORROCKS & SONS LTD,16/07/2012,20300,Heating & Electrical Work,Property Services,Westhoughton Area Office,518.23
2505441,C P DAVIDSON & SONS LTD,09/07/2012,Z1051,Work in Progress Additions,Environmental Services,Environmental Services Balance sheet,"45,995.64"
2511387,C P DAVIDSON & SONS LTD,19/07/2012,Z1051,Work in Progress Additions,Environmental Services,Environmental Services Balance sheet,"45,995.64"
2510311,C P DAVIDSON & SONS LTD,16/07/2012,Z1051,Work in Progress Additions,Environmental Services,Environmental Services Balance sheet,"45,995.64"
2512958,C P DAVIDSON & SONS LTD,19/07/2012,Z1051,Work in Progress Additions,Environmental Services,Environmental Services Balance sheet,"45,995.64"
2507657,C P DAVIDSON & SONS LTD,16/07/2012,33201,Transport Hire,Environmental Services,Transport Support Service,"1,570.00"
2513807,C22 MEDIA,19/07/2012,48203,Marketing,Central Services,Marketing  General,"1,410.00"
2499095,CAPITA BUSINESS SERVICES LTD,26/07/2012,48629,Miscellaneous Expenses,Children's Services,Admin IT (Schools),"12,102.50"
2503041,CARE MONITORING 2000 LTD,16/07/2012,Z1051,Work in Progress Additions,Adult Services,Adult Services Balance Sheet,"2,385.00"
2510371,CARE UK HOMECARE#CARE UK (BOLTON),16/07/2012,52200,Contracted Services,Adult Services,OA  Home Care Services external provision,"51,184.10"
2502418,CAREWATCH (BOLTON),05/07/2012,52200,Contracted Services,Adult Services,OA  Home Care Services external provision,"24,258.30"
2506219,CARING ALTERNATIVES LIMITED,12/07/2012,52200,Contracted Services,Adult Services,MH Residential External Provision,977.81
2506222,CARING ALTERNATIVES LIMITED,12/07/2012,52200,Contracted Services,Adult Services,MH Residential External Provision,"1,672.00"
2504242,REDACTED - PERSONAL DATA,09/07/2012,33201,Transport Hire,Environmental Services,SNT Adult Servs,809.90
2520629,REDACTED - PERSONAL DATA,30/07/2012,33201,Transport Hire,Environmental Services,SNT Adult Servs,809.90
2502718,CB BUILDING AND JOINERY LTD,12/07/2012,44051,Clients Aids & Adaptations,Adult Services,AD ICES,785.00
2515895,CB BUILDING AND JOINERY LTD,23/07/2012,44051,Clients Aids & Adaptations,Adult Services,AD ICES,845.00
2506209,CEMEX UK MATERIALS LTD,26/07/2012,Z6008,Expense AP Accrual,Bolton MBC Balance Sheet,Bolton MBC Balance Sheet,656.79
2506213,CEMEX UK MATERIALS LTD,26/07/2012,Z6008,Expense AP Accrual,Bolton MBC Balance Sheet,Bolton MBC Balance Sheet,593.91
2513751,CEMEX UK MATERIALS LTD,23/07/2012,Z6008,Expense AP Accrual,Bolton MBC Balance Sheet,Bolton MBC Balance Sheet,976.50
2510757,CENTER PARCS LTD,16/07/2012,40100,Operational Equipment Purchase,Children's Services,Leverhulme YP Centre,"1,763.33"
2504243,CENTRAL CARS & BUSES,09/07/2012,33201,Transport Hire,Environmental Services,SNT Adult Servs,"1,312.00"
2520632,CENTRAL CARS & BUSES,30/07/2012,33201,Transport Hire,Environmental Services,SNT Adult Servs,"1,148.00"
2506729,CHALLENGER SITE SERVICES,19/07/2012,20400,Garden Maintenance,Environmental Services,Greenspace,"4,368.00"
2508764,CHASSIS & CAB SPECIALISTS,16/07/2012,52200,Contracted Services,Environmental Services,Transport Support Service,"3,819.50"
2507704,CHASSIS & CAB SPECIALISTS,19/07/2012,52200,Contracted Services,Environmental Services,Transport Support Service,"1,060.00"
2506478,CHEMSEARCH,12/07/2012,40601,General Materials,Environmental Services,Markets  Rent Account,615.00
2504339,CHILD ACTION NORTHWEST,09/07/2012,44054,Other Clients Services,Children's Services,Youth Offending Team,"1,020.41"
2502315,CHOICES HOME FOR CHILDREN LTD,12/07/2012,52000,Vol Assoc Grants  General,Children's Services,Res Serv Agency Placements,"8,460.60"
2502314,CHOICES HOME FOR CHILDREN LTD,12/07/2012,52000,Vol Assoc Grants  General,Children's Services,Res Serv Agency Placements,"7,305.90"
2502316,CHOICES HOME FOR CHILDREN LTD,12/07/2012,52000,Vol Assoc Grants  General,Children's Services,Res Serv Agency Placements,"7,285.80"
2519006,REDACTED - PERSONAL DATA,26/07/2012,48502,Legal Fees,Children's Services,Management Team,750.00
2499230,CICELEY COMMERCIAL BLACKBURN,24/07/2012,31305,Vehicle Servicing,Environmental Services,Transport Support Service,"1,090.38"
2510310,CICELEY TRUCK & VAN CENTRE#INCLUDES COMMERCIALS,16/07/2012,Z1051,Work in Progress Additions,Environmental Services,Environmental Services Balance sheet,"69,432.00"
2505430,CICELEY TRUCK & VAN CENTRE#INCLUDES COMMERCIALS,09/07/2012,Z1051,Work in Progress Additions,Environmental Services,Environmental Services Balance sheet,"69,432.00"
2513217,CICELEY TRUCK & VAN CENTRE#INCLUDES COMMERCIALS,19/07/2012,Z1051,Work in Progress Additions,Environmental Services,Environmental Services Balance sheet,"69,432.00"
2513218,CICELEY TRUCK & VAN CENTRE#INCLUDES COMMERCIALS,19/07/2012,Z1051,Work in Progress Additions,Environmental Services,Environmental Services Balance sheet,"69,432.00"
2507494,CIEH#CHARTERED INSTITUTE OF ENVIRONMENTAL HEALTH,19/07/2012,19105,Training Exp  Books Etc,Adult Services,Staff Development  Adults,568.80
2511004,CITY B GROUP,23/07/2012,46203,Civic Hospitality,Central Services,Mayoralty,"1,648.00"
2522688,CITY BUILD MANCHESTER LTD,30/07/2012,Z1051,Work in Progress Additions,Property Services,Corporate Property Capital Project Transfers to Other Projects,"134,541.34"
2498631,CITY BUILD MANCHESTER LTD,02/07/2012,Z1051,Work in Progress Additions,Property Services,Corporate Property Capital Project Transfers to Other Projects,"82,320.32"
2519355,CLEARAIMS LIMITED,26/07/2012,48509,Other Fees,Housing GRF,Neighbourhood Management Project,"3,400.00"
2502734,CLEARER PRODUCTIONS,05/07/2012,48501,Artistes Fees,Environmental Services,Albert Halls Entertainment,805.10
2519705,CLICQUOT UTILITIES LTD,30/07/2012,52200,Contracted Services,Finance Department,Housing Benefits,768.00
2511291,CLICQUOT UTILITIES LTD,19/07/2012,52200,Contracted Services,Finance Department,Housing Benefits,639.00
2504122,CLICQUOT UTILITIES LTD,09/07/2012,52200,Contracted Services,Finance Department,Housing Benefits,513.00
2513805,CLIVE TAYLOR CONSULTANCY,26/07/2012,48509,Other Fees,Children's Services,Primary Commissioning,"1,980.00"
2513799,COLAS LTD,26/07/2012,Z6008,Expense AP Accrual,Bolton MBC Balance Sheet,Bolton MBC Balance Sheet,705.44
2506234,COLBRE PROJECTS LTD,12/07/2012,20100,Day To Day Maintenance,Environmental Services,Assets,"3,500.00"
2513759,COMENSURA LTD,19/07/2012,53102,Agency Staff  Other,Adult Services,AD  Contracts,"1,018.94"
2513759,COMENSURA LTD,19/07/2012,53102,Agency Staff  Other,Adult Services,OA  Darley Court Intermediate Care,"4,337.87"
2513759,COMENSURA LTD,19/07/2012,53102,Agency Staff  Other,Adult Services,OA  Fieldwork Team West,674.72
2513759,COMENSURA LTD,19/07/2012,53102,Agency Staff  Other,Adult Services,OA  Firwood  Residential,568.22
2513759,COMENSURA LTD,19/07/2012,53102,Agency Staff  Other,Adult Services,OA Merton  Extra Care Housing,"1,337.66"
2513759,COMENSURA LTD,19/07/2012,53102,Agency Staff  Other,Children's Services,Admin Strategy&Performance,564.99
2513759,COMENSURA LTD,19/07/2012,53102,Agency Staff  Other,Children's Services,Business Support    South District,"3,174.07"
2513759,COMENSURA LTD,19/07/2012,53102,Agency Staff  Other,Children's Services,Business Support � North District,"1,379.12"
2513759,COMENSURA LTD,19/07/2012,53102,Agency Staff  Other,Children's Services,Children and Family Supp Svs North,"1,069.67"
2513759,COMENSURA LTD,19/07/2012,53102,Agency Staff  Other,Children's Services,Children and Family Supp Svs South,"2,387.12"
2513759,COMENSURA LTD,19/07/2012,53102,Agency Staff  Other,Children's Services,Children and Family Supp Svs West,"1,226.37"
2513759,COMENSURA LTD,19/07/2012,53102,Agency Staff  Other,Children's Services,Oxford Grove CC,"1,032.73"
2513759,COMENSURA LTD,19/07/2012,53102,Agency Staff  Other,Children's Services,Positive Activities,664.79
2513759,COMENSURA LTD,19/07/2012,53102,Agency Staff  Other,Central Services,Elections,"1,106.98"
2513759,COMENSURA LTD,19/07/2012,53102,Agency Staff  Other,Environmental Services,Bereavement Services,906.08
2513759,COMENSURA LTD,19/07/2012,53102,Agency Staff  Other,Environmental Services,Greenspace,"4,247.74"
2513759,COMENSURA LTD,19/07/2012,53102,Agency Staff  Other,Environmental Services,Markets  Rent Account,"1,796.94"
2513759,COMENSURA LTD,19/07/2012,53102,Agency Staff  Other,Environmental Services,Regulatory Services,775.80
2513759,COMENSURA LTD,19/07/2012,53102,Agency Staff  Other,Environmental Services,Waste,"5,875.20"
2513759,COMENSURA LTD,19/07/2012,53102,Agency Staff  Other,Finance Department,Customer Services,813.16
2513759,COMENSURA LTD,19/07/2012,53102,Agency Staff  Other,Finance Department,Finance Ap Centre of Excellence,527.73
2513759,COMENSURA LTD,19/07/2012,50002,Other Agency/Contracted Services,Finance Department,Housing Benefits,"9,025.86"
2513759,COMENSURA LTD,19/07/2012,53102,Agency Staff  Other,Finance Department,Housing Benefits,"1,893.78"
2513759,COMENSURA LTD,19/07/2012,53102,Agency Staff  Other,Property Services,Projects,"4,218.92"
2513759,COMENSURA LTD,19/07/2012,53102,Agency Staff  Other,Housing GRF,Find a Home,977.85
2513759,COMENSURA LTD,19/07/2012,53102,Agency Staff  Other,Legal Trading,Legal Services Trading Account,"4,537.12"
2513759,COMENSURA LTD,19/07/2012,53102,Agency Staff  Other,Development & Regen,The Work Programme,544.64
2513759,COMENSURA LTD,19/07/2012,53102,Agency Staff  Other,Chief Executives Department,Occupational Health Unit,"1,139.60"
2518853,COMENSURA LTD,26/07/2012,53102,Agency Staff  Other,Adult Services,AD  Contracts,992.69
2518853,COMENSURA LTD,26/07/2012,53102,Agency Staff  Other,Adult Services,OA  Darley Court Intermediate Care,"5,894.85"
2518853,COMENSURA LTD,26/07/2012,53102,Agency Staff  Other,Adult Services,OA  Fieldwork Team West,832.15
2518853,COMENSURA LTD,26/07/2012,53102,Agency Staff  Other,Adult Services,OA Merton  Extra Care Housing,509.40
2518853,COMENSURA LTD,26/07/2012,53102,Agency Staff  Other,Children's Services,Admin Strategy&Performance,564.98
2518853,COMENSURA LTD,26/07/2012,53102,Agency Staff  Other,Children's Services,Business Support    South District,"3,420.11"
2518853,COMENSURA LTD,26/07/2012,53102,Agency Staff  Other,Children's Services,Business Support � North District,"1,067.45"
2518853,COMENSURA LTD,26/07/2012,53102,Agency Staff  Other,Children's Services,Children and Family Supp Svs North,"1,127.85"
2518853,COMENSURA LTD,26/07/2012,53102,Agency Staff  Other,Children's Services,Children and Family Supp Svs South,"2,409.44"
2518853,COMENSURA LTD,26/07/2012,53102,Agency Staff  Other,Children's Services,Children and Family Supp Svs West,"1,153.52"
2518853,COMENSURA LTD,26/07/2012,53102,Agency Staff  Other,Children's Services,Positive Activities,620.27
2518853,COMENSURA LTD,26/07/2012,53102,Agency Staff  Other,Children's Services,"Sure Start 1(Halliwell, Central & Smithills)",921.87
2518853,COMENSURA LTD,26/07/2012,53102,Agency Staff  Other,Central Services,Elections,"1,365.25"
2518853,COMENSURA LTD,26/07/2012,53102,Agency Staff  Other,Environmental Services,Bereavement Services,971.81
2518853,COMENSURA LTD,26/07/2012,53102,Agency Staff  Other,Environmental Services,Markets  Rent Account,"2,151.95"
2518853,COMENSURA LTD,26/07/2012,53102,Agency Staff  Other,Environmental Services,Performance and Improvement,694.33
2518853,COMENSURA LTD,26/07/2012,53102,Agency Staff  Other,Environmental Services,Regulatory Services,775.80
2518853,COMENSURA LTD,26/07/2012,53102,Agency Staff  Other,Environmental Services,Waste,"1,970.61"
2518853,COMENSURA LTD,26/07/2012,53102,Agency Staff  Other,Finance Department,Customer Services,"2,788.71"
2518853,COMENSURA LTD,26/07/2012,50002,Other Agency/Contracted Services,Finance Department,Housing Benefits,"8,165.98"
2518853,COMENSURA LTD,26/07/2012,53102,Agency Staff  Other,Finance Department,Housing Benefits,860.45
2518853,COMENSURA LTD,26/07/2012,53102,Agency Staff  Other,Property Services,Operational Facilities Management,"1,929.28"
2518853,COMENSURA LTD,26/07/2012,53102,Agency Staff  Other,Property Services,Projects,"3,916.99"
2518853,COMENSURA LTD,26/07/2012,53102,Agency Staff  Other,Housing GRF,Find a Home,915.84
2518853,COMENSURA LTD,26/07/2012,53102,Agency Staff  Other,Legal Trading,Legal Services Trading Account,"4,898.90"
2518853,COMENSURA LTD,26/07/2012,53102,Agency Staff  Other,Development & Regen,The Work Programme,986.24
2518853,COMENSURA LTD,26/07/2012,53102,Agency Staff  Other,Chief Executives Department,Occupational Health Unit,"1,440.19"
2506896,COMENSURA LTD,12/07/2012,53102,Agency Staff  Other,Adult Services,AD  Contracts,"1,018.94"
2506896,COMENSURA LTD,12/07/2012,53102,Agency Staff  Other,Adult Services,OA  Alderbank  Residential,732.68
2506896,COMENSURA LTD,12/07/2012,53102,Agency Staff  Other,Adult Services,OA  Darley Court Intermediate Care,"2,804.13"
2506896,COMENSURA LTD,12/07/2012,53102,Agency Staff  Other,Adult Services,OA  Fieldwork Team West,719.68
2506896,COMENSURA LTD,12/07/2012,53102,Agency Staff  Other,Adult Services,OA  Firwood  Residential,571.32
2506896,COMENSURA LTD,12/07/2012,53102,Agency Staff  Other,Children's Services,Admin Strategy&Performance,564.99
2506896,COMENSURA LTD,12/07/2012,53102,Agency Staff  Other,Children's Services,Business Support    South District,"2,630.71"
2506896,COMENSURA LTD,12/07/2012,53102,Agency Staff  Other,Children's Services,Business Support � North District,"1,288.73"
2506896,COMENSURA LTD,12/07/2012,53102,Agency Staff  Other,Children's Services,Children and Family Supp Svs North,"1,117.89"
2506896,COMENSURA LTD,12/07/2012,53102,Agency Staff  Other,Children's Services,Children and Family Supp Svs South,"1,586.73"
2506896,COMENSURA LTD,12/07/2012,53102,Agency Staff  Other,Children's Services,Children and Family Supp Svs West,"1,242.28"
2506896,COMENSURA LTD,12/07/2012,53102,Agency Staff  Other,Children's Services,Oxford Grove CC,"1,032.73"
2506896,COMENSURA LTD,12/07/2012,53102,Agency Staff  Other,Children's Services,"Sure Start 1(Halliwell, Central & Smithills)",680.67
2506896,COMENSURA LTD,12/07/2012,53102,Agency Staff  Other,Central Services,Elections,"1,365.25"
2506896,COMENSURA LTD,12/07/2012,53102,Agency Staff  Other,Environmental Services,Bereavement Services,"1,042.23"
2506896,COMENSURA LTD,12/07/2012,53102,Agency Staff  Other,Environmental Services,Greenspace,"1,183.07"
2506896,COMENSURA LTD,12/07/2012,53102,Agency Staff  Other,Environmental Services,Heaton Fold,674.75
2506896,COMENSURA LTD,12/07/2012,53102,Agency Staff  Other,Environmental Services,Markets  Rent Account,"1,399.84"
2506896,COMENSURA LTD,12/07/2012,53102,Agency Staff  Other,Environmental Services,Performance and Improvement,"2,240.58"
2506896,COMENSURA LTD,12/07/2012,53102,Agency Staff  Other,Environmental Services,Regulatory Services,"1,489.55"
2506896,COMENSURA LTD,12/07/2012,53102,Agency Staff  Other,Environmental Services,Security Services,609.97
2506896,COMENSURA LTD,12/07/2012,53102,Agency Staff  Other,Environmental Services,Waste,"13,608.73"
2506896,COMENSURA LTD,12/07/2012,53102,Agency Staff  Other,Finance Department,Finance Ap Centre of Excellence,678.51
2506896,COMENSURA LTD,12/07/2012,50002,Other Agency/Contracted Services,Finance Department,Housing Benefits,"8,521.33"
2506896,COMENSURA LTD,12/07/2012,53102,Agency Staff  Other,Finance Department,Housing Benefits,"1,983.29"
2506896,COMENSURA LTD,12/07/2012,53102,Agency Staff  Other,Property Services,Operational Facilities Management,"1,050.10"
2506896,COMENSURA LTD,12/07/2012,53102,Agency Staff  Other,Property Services,Projects,"3,398.67"
2506896,COMENSURA LTD,12/07/2012,53102,Agency Staff  Other,Housing GRF,Find a Home,"1,006.47"
2506896,COMENSURA LTD,12/07/2012,53102,Agency Staff  Other,Legal Trading,Legal Services Trading Account,"6,186.24"
2506896,COMENSURA LTD,12/07/2012,53102,Agency Staff  Other,Development & Regen,The Work Programme,"1,317.59"
2506896,COMENSURA LTD,12/07/2012,53102,Agency Staff  Other,Chief Executives Department,Occupational Health Unit,"1,436.86"
2503002,COMENSURA LTD,05/07/2012,53102,Agency Staff  Other,Adult Services,AD  Contracts,926.87
2503002,COMENSURA LTD,05/07/2012,53102,Agency Staff  Other,Adult Services,AD Finance,652.72
2503002,COMENSURA LTD,05/07/2012,53102,Agency Staff  Other,Adult Services,Customer Services,"2,359.86"
2503002,COMENSURA LTD,05/07/2012,53102,Agency Staff  Other,Adult Services,OA  Alderbank  Residential,679.48
2503002,COMENSURA LTD,05/07/2012,53102,Agency Staff  Other,Adult Services,OA  Darley Court Intermediate Care,"4,529.68"
2503002,COMENSURA LTD,05/07/2012,53102,Agency Staff  Other,Adult Services,OA  Fieldwork Team West,719.66
2503002,COMENSURA LTD,05/07/2012,53102,Agency Staff  Other,Adult Services,OA  Firwood  Residential,571.32
2503002,COMENSURA LTD,05/07/2012,53102,Agency Staff  Other,Adult Services,OA Merton  Extra Care Housing,"1,755.27"
2503002,COMENSURA LTD,05/07/2012,53102,Agency Staff  Other,Children's Services,Admin Strategy&Performance,564.98
2503002,COMENSURA LTD,05/07/2012,53102,Agency Staff  Other,Children's Services,Business Support    South District,"3,148.11"
2503002,COMENSURA LTD,05/07/2012,53102,Agency Staff  Other,Children's Services,Business Support � North District,"1,198.28"
2503002,COMENSURA LTD,05/07/2012,53102,Agency Staff  Other,Children's Services,Children and Family Supp Svs North,"1,071.87"
2503002,COMENSURA LTD,05/07/2012,53102,Agency Staff  Other,Children's Services,Children and Family Supp Svs South,"1,401.76"
2503002,COMENSURA LTD,05/07/2012,53102,Agency Staff  Other,Children's Services,Children and Family Supp Svs West,"1,225.04"
2503002,COMENSURA LTD,05/07/2012,53102,Agency Staff  Other,Children's Services,Oxford Grove CC,546.90
2503002,COMENSURA LTD,05/07/2012,53102,Agency Staff  Other,Children's Services,Positive Activities,638.97
2503002,COMENSURA LTD,05/07/2012,53102,Agency Staff  Other,Children's Services,"Sure Start 1(Halliwell, Central & Smithills)",641.10
2503002,COMENSURA LTD,05/07/2012,53102,Agency Staff  Other,Environmental Services,Bereavement Services,"1,042.23"
2503002,COMENSURA LTD,05/07/2012,53102,Agency Staff  Other,Environmental Services,Business Support,748.88
2503002,COMENSURA LTD,05/07/2012,53102,Agency Staff  Other,Environmental Services,Depots,699.51
2503002,COMENSURA LTD,05/07/2012,53102,Agency Staff  Other,Environmental Services,Greenspace,"11,668.49"
2503002,COMENSURA LTD,05/07/2012,53102,Agency Staff  Other,Environmental Services,Management & Overheads,797.02
2503002,COMENSURA LTD,05/07/2012,53102,Agency Staff  Other,Environmental Services,Markets  Rent Account,960.92
2503002,COMENSURA LTD,05/07/2012,53102,Agency Staff  Other,Environmental Services,Security Services,"1,563.13"
2503002,COMENSURA LTD,05/07/2012,53102,Agency Staff  Other,Environmental Services,Waste,"15,320.95"
2503002,COMENSURA LTD,05/07/2012,53102,Agency Staff  Other,Finance Department,C.R.M. Operations,"9,139.42"
2503002,COMENSURA LTD,05/07/2012,53102,Agency Staff  Other,Finance Department,Finance Ap Centre of Excellence,904.68
2503002,COMENSURA LTD,05/07/2012,53102,Agency Staff  Other,Finance Department,Housing Benefits,"2,071.67"
2503002,COMENSURA LTD,05/07/2012,53102,Agency Staff  Other,Property Services,Projects,"2,628.55"
2503002,COMENSURA LTD,05/07/2012,53102,Agency Staff  Other,Housing GRF,Find a Home,"1,025.55"
2503002,COMENSURA LTD,05/07/2012,53102,Agency Staff  Other,Legal Trading,Legal Services Trading Account,"3,144.70"
2503002,COMENSURA LTD,05/07/2012,53102,Agency Staff  Other,Development & Regen,The Work Programme,"1,648.79"
2503002,COMENSURA LTD,05/07/2012,53102,Agency Staff  Other,Chief Executives Department,Occupational Health Unit,"1,277.29"
2507128,CONCRETE & TIMBER SERVICES LTD,26/07/2012,Z1051,Work in Progress Additions,Environmental Services,Environmental Services Balance sheet,"2,300.00"
2507078,CORLETT ELECTRICAL  ENGINEERING COMPANY LTD,12/07/2012,52208,Contracted Services PAT Testing,Property Services,Operational Facilities Management,"4,420.00"
2498666,CORLETT ELECTRICAL  ENGINEERING COMPANY LTD,02/07/2012,52208,Contracted Services PAT Testing,Property Services,Operational Facilities Management,"4,984.40"
2498664,CORLETT ELECTRICAL  ENGINEERING COMPANY LTD,02/07/2012,52208,Contracted Services PAT Testing,Property Services,Operational Facilities Management,"7,392.04"
2507086,CORLETT ELECTRICAL  ENGINEERING COMPANY LTD,12/07/2012,52208,Contracted Services PAT Testing,Property Services,Operational Facilities Management,"15,834.98"
2522684,CORONA ENERGY RETAIL 4 LIMITED,30/07/2012,21200,Gas  General,Property Services,Admin Buildings  General,"42,127.22"
2507040,COUNTRY BASKETS ASTLEY#CB IMPORTS PLC,16/07/2012,40609,Horticultural Materials,Environmental Services,Heaton Fold,533.33
2507241,COUTTS INFORMATION SERVICES LTD,19/07/2012,40753,Book Fund Expenditure,Finance Department,Libraries Info. Services,959.90
2517539,CRAEMER UK LTD,30/07/2012,Z1051,Work in Progress Additions,Environmental Services,Environmental Services Balance sheet,"10,590.00"
2498683,CRANLEIGH DESIGN CONSULTANTS LTD,26/07/2012,20100,Day To Day Maintenance,Environmental Services,Markets  Rent Account,"1,200.00"
2503021,CREATIVE SUPPORT LTD#3,05/07/2012,52200,Contracted Services,Adult Services,LD Purchaser Supported Housing,"33,725.44"
2503022,CREATIVE SUPPORT LTD#3,05/07/2012,52200,Contracted Services,Adult Services,LD Purchaser Supported Housing,"39,912.92"
2503018,CREATIVE SUPPORT LTD#3,05/07/2012,52200,Contracted Services,Adult Services,LD Purchaser Supported Housing,"14,482.16"
2522622,CRIMINAL RECORDS BUREAU#CRB,30/07/2012,48528,CRB Checks  External,Environmental Services,Regulatory Services,"1,364.00"
2506438,CRIMINAL RECORDS BUREAU#CRB,12/07/2012,19400,Disclosure Monitoring,Chief Executives Department,HR  Corporate,"21,239.00"
2509727,CRIMINAL RECORDS BUREAU#CRB,16/07/2012,48528,CRB Checks  External,Environmental Services,Regulatory Services,"3,124.00"
2502785,CRIMINAL RECORDS BUREAU#CRB,05/07/2012,48528,CRB Checks  External,Environmental Services,Regulatory Services,"2,420.00"
2511382,CROMWELL POLYTHENE LTD,19/07/2012,Z1051,Work in Progress Additions,Environmental Services,Environmental Services Balance sheet,"8,977.86"
2504267,CROSSROADS CARE IN GREATER MANCHESTER LTD,09/07/2012,52200,Contracted Services,Children's Services,Admin Commissioning,"1,039.50"
2515849,CROWNESS KENNELS & CATTERY#M CRILLY,23/07/2012,52300,Client Support Costs,Adult Services,MH Residential External Provision,558.00
2514193,D RATCLIFFE PLUMBING & HEATING LTD,23/07/2012,Z1051,Work in Progress Additions,Housing GRF,Capital  General Fund,"3,486.00"
2517660,D2 DIGITAL BY DESIGN LTD#1,30/07/2012,52000,Vol Assoc Grants  General,Adult Services,Drugs Pooled Treatment Budget,"1,250.00"
2517744,D2 DIGITAL BY DESIGN LTD#1,30/07/2012,52000,Vol Assoc Grants  General,Adult Services,Drugs Pooled Treatment Budget,"1,250.00"
2517741,D2 DIGITAL BY DESIGN LTD#1,30/07/2012,52000,Vol Assoc Grants  General,Adult Services,Drugs Pooled Treatment Budget,"3,000.00"
2517731,D2 DIGITAL BY DESIGN LTD#1,30/07/2012,52000,Vol Assoc Grants  General,Adult Services,Drugs Pooled Treatment Budget,"1,250.00"
2513779,DANVIC TURF CARE LTD,26/07/2012,53000,Private Contracted Services,Environmental Services,Assets,"15,814.50"
2504195,DATASPACE,19/07/2012,48506,Records Storage,Children's Services,Business Support � North District,764.23
2506571,DATASPACE,12/07/2012,48506,Records Storage,Legal Trading,Legal Services Trading Account,607.58
2503917,REDACTED - PERSONAL DATA,19/07/2012,53102,Agency Staff  Other,Children's Services,Outdoor Education,"2,072.00"
2515606,DAYTRIPPERS,23/07/2012,52200,Contracted Services,Children's Services,Admin Commissioning,"2,500.00"
2511302,DE VERE WHITES HOTEL,19/07/2012,48207,Hospitality,Adult Services,Drugs Pooled Treatment Budget,"1,618.75"
2520456,DEAFINITELY ABLE INTERPRETING SERVICES LIMITED,30/07/2012,48509,Other Fees,Adult Services,ACM  North,665.00
2503744,DIAMOND HEALTHCARE (NW) LTD#DERBY STREET PHARMACY,09/07/2012,52000,Vol Assoc Grants  General,Adult Services,Drugs Pooled Treatment Budget,665.20
2507028,DIRECT BAILIFF SERVICES LIMITED,12/07/2012,48509,Other Fees,Central Corporate,Land & Property,955.55
2518381,DLA PIPER UK LLP,30/07/2012,48509,Other Fees,Development & Regen,Project Revenue Account,"7,554.25"
2520325,DOOR SERVICES,30/07/2012,20100,Day To Day Maintenance,Housing GRF,Lease Management Scheme,674.99
2517395,DOVE MARKETING,23/07/2012,44051,Clients Aids & Adaptations,Adult Services,ICES,711.90
2518991,DOVE MARKETING,26/07/2012,44051,Clients Aids & Adaptations,Adult Services,ICES,711.90
2520907,DRS DIRECT LTD#BIBBY FACTORS LEICESTER LIMITED,30/07/2012,55711,Medical Referees Fees,Chief Executives Department,Occ Health Holding Code,900.00
2515778,DRS DIRECT LTD#BIBBY FACTORS LEICESTER LIMITED,23/07/2012,55711,Medical Referees Fees,Chief Executives Department,Occ Health Holding Code,900.00
2515785,DRS DIRECT LTD#BIBBY FACTORS LEICESTER LIMITED,23/07/2012,55711,Medical Referees Fees,Chief Executives Department,Occ Health Holding Code,900.00
2515776,DRS DIRECT LTD#BIBBY FACTORS LEICESTER LIMITED,23/07/2012,55711,Medical Referees Fees,Chief Executives Department,Occ Health Holding Code,900.00
2515781,DRS DIRECT LTD#BIBBY FACTORS LEICESTER LIMITED,23/07/2012,55711,Medical Referees Fees,Chief Executives Department,Occ Health Holding Code,900.00
2506899,DRS DIRECT LTD#BIBBY FACTORS LEICESTER LIMITED,12/07/2012,46006,Staff Medical Fees,Chief Executives Department,Occ Health Holding Code,"1,575.00"
2511234,DS BUILDING SERVICES UK LTD,19/07/2012,44051,Clients Aids & Adaptations,Adult Services,ICES,875.00
2513310,DUNELM SOFT FURNISHINGS LTD,23/07/2012,40100,Operational Equipment Purchase,Children's Services,Disability Serv Trackside Approach,737.98
2520653,DUNNES TRAVEL SERVICES#DTS,30/07/2012,33201,Transport Hire,Environmental Services,SNT Adult Servs,"1,694.00"
2504249,DUNNES TRAVEL SERVICES#DTS,09/07/2012,33201,Transport Hire,Environmental Services,SNT Adult Servs,"1,936.00"
2507537,DURABLE LTD,16/07/2012,Z1051,Work in Progress Additions,Adult Services,Adult Services Balance Sheet,"47,676.47"
2515534,DUVAL SECURITY,30/07/2012,44401,Other Security Expenses,Environmental Services,Markets  Rent Account,"2,015.56"
2519435,E.ON ENERGY#2,26/07/2012,21100,Electricity  General,Environmental Services,Mngmnt & Admin Overhead,707.07
2510734,E.ON ENERGY#2,16/07/2012,21200,Gas  General,Housing Revenue Account,Housing Revenue Account,"1,019.10"
2517392,E.ON ENERGY#2,23/07/2012,21200,Gas  General,Housing Revenue Account,Housing Revenue Account,"1,019.10"
2514300,EARLSMERE LIMITED,23/07/2012,40100,Operational Equipment Purchase,Environmental Services,Transport Support Service,577.80
2519126,EASYLAWN TURF SUPPLIES LTD,26/07/2012,47103,Miscellaneous Grants,Chief Executives Department,Neighbourhood Mgt and Area Working Devolved,"1,530.00"
2518856,EASYLINK UK,26/07/2012,44051,Clients Aids & Adaptations,Adult Services,Independent,769.25
2508295,ECCLES CONSTRUCTION,16/07/2012,20100,Day To Day Maintenance,Central Corporate,Land & Property,"1,186.48"
2506151,ECCLES CONSTRUCTION,12/07/2012,20100,Day To Day Maintenance,Central Corporate,Land & Property,826.80
2512794,ECCLES CONSTRUCTION,19/07/2012,20100,Day To Day Maintenance,Central Corporate,Land & Property,520.00
2512798,ECCLES CONSTRUCTION,19/07/2012,20100,Day To Day Maintenance,Adult Services,OA  Carers Grant,510.02
2504017,EDUCATION SUPPORT PROFESSIONALS,26/07/2012,53102,Agency Staff  Other,Children's Services,Admin IT (Schools),"1,015.00"
2505971,ELECTRICITY CONNECTIONS ELECTRICITY NORTHWEST,09/07/2012,Z1051,Work in Progress Additions,Property Services,Corporate Property Capital Project Transfers to Other Projects,"6,767.16"
2509783,ELECTRICITY NORTH WEST LIMITED#UNITED UTILITIES ELECTRICITY SERVICES LTD,16/07/2012,20501,Engineering Work,Environmental Services,Highway Services,609.99
2522396,ELECTRICITY NORTH WEST LIMITED#UNITED UTILITIES ELECTRICITY SERVICES LTD,30/07/2012,20501,Engineering Work,Environmental Services,Highway Services,609.99
2515652,ELECTRICITY NORTH WEST LIMITED#UNITED UTILITIES ELECTRICITY SERVICES LTD,23/07/2012,Z1051,Work in Progress Additions,Housing GRF,Capital  General Fund,"1,857.67"
2506501,ELKLAN,12/07/2012,48526,Strategic Projects,Children's Services,Early Years & Childcare,"1,147.50"
2498754,ENGINEERING SERVICE CO,05/07/2012,20100,Day To Day Maintenance,Chief Executives Department,Policy Performance & Communications Mngmnt,"2,539.00"
2510753,ENGINEERING SERVICE CO,16/07/2012,20100,Day To Day Maintenance,Property Services,Town Hall,504.00
2505946,ENGLISH CHURCHES HOUSING GROUP#4,12/07/2012,52200,Contracted Services,Adult Services,Supporting People  Capital Financing,"8,549.44"
2505688,ENTERPRISE MANAGED SERVICES (E&CS) LIMITED,09/07/2012,21100,Electricity  General,Environmental Services,Mngmnt & Admin Overhead,660.00
2505688,ENTERPRISE MANAGED SERVICES (E&CS) LIMITED,09/07/2012,21100,Electricity  General,Property Services,Admin Buildings  General,660.00
2504251,EURO MINIBUSES,09/07/2012,33201,Transport Hire,Environmental Services,SNT Adult Servs,"2,444.00"
2520656,EURO MINIBUSES,30/07/2012,33201,Transport Hire,Environmental Services,SNT Adult Servs,"2,325.00"
2520575,EXPERIAN LIMITED#T/A FOOTFALL LTD,30/07/2012,48631,Office Expenses  General,Finance Department,Council Tax,"5,849.50"
2509766,F R SHARROCK LTD,16/07/2012,40102,Operational Equipment Rental,Environmental Services,Activities and Operations,"1,295.00"
2498823,FAUN ZOELLER (UK) LTD,16/07/2012,31305,Vehicle Servicing,Environmental Services,Transport Support Service,532.50
2508726,FAUN ZOELLER (UK) LTD,16/07/2012,31305,Vehicle Servicing,Environmental Services,Transport Support Service,511.10
2515412,FAUN ZOELLER (UK) LTD,26/07/2012,31305,Vehicle Servicing,Environmental Services,Transport Support Service,"1,258.44"
2515404,FAUN ZOELLER (UK) LTD,26/07/2012,31305,Vehicle Servicing,Environmental Services,Transport Support Service,527.97
2502691,FIBROUS LIMITED,19/07/2012,40601,General Materials,Environmental Services,Bereavement Services,"1,460.00"
2510370,FIRST CALL COMMUNITY SYSTEMS LTD T/A SURECARE,16/07/2012,52200,Contracted Services,Adult Services,OA  Home Care Services external provision,"12,896.37"
2520536,FIRST MANCHESTER LTD & FIRST TRANSFORMING TRAVEL,30/07/2012,34401,Clients  Bus Fares,Development & Regen,The Work Programme,640.50
2506572,FIRST MANCHESTER LTD & FIRST TRANSFORMING TRAVEL,19/07/2012,34401,Clients  Bus Fares,Development & Regen,The Work Programme,640.50
2502417,FIRSTCALL HEALTHCARE#PASSHALL LTD,05/07/2012,52200,Contracted Services,Adult Services,OA  Home Care Services external provision,"44,360.58"
2505944,FORTALICE LTD#BOLTON WOMENS AID,12/07/2012,52200,Contracted Services,Adult Services,Supporting People  Capital Financing,"17,254.06"
2515608,FORTALICE LTD#BOLTON WOMENS AID,23/07/2012,52200,Contracted Services,Children's Services,Admin Commissioning,"14,000.00"
2511325,FOSTER CARE ASSOCIATES LTD,19/07/2012,52000,Vol Assoc Grants  General,Children's Services,Res Serv Agency Placements,"4,312.10"
2498574,FOSTER CARE ASSOCIATES LTD,19/07/2012,52000,Vol Assoc Grants  General,Children's Services,Res Serv Agency Placements,"3,518.50"
2507758,FOSTER CARES LTD,19/07/2012,52000,Vol Assoc Grants  General,Children's Services,Res Serv Agency Placements,"1,320.00"
2502300,FOSTER CARES LTD,12/07/2012,52000,Vol Assoc Grants  General,Children's Services,Res Serv Agency Placements,"1,320.00"
2502420,FREIGHT TRANSPORT ASSOC LTD,12/07/2012,19100,Training Exps Tuition Fees,Environmental Services,Transport Support Service,650.00
2513800,FRONTRUNNER (LINCS) LTD,19/07/2012,48203,Marketing,Central Services,Marketing  General,"26,570.00"
2515599,FUJITSU SERVICES LIMITED,23/07/2012,45431,Computer Software Licences,Finance Department,CSS Costs/Savings,"199,958.00"
2520571,FUJITSU SERVICES LIMITED,30/07/2012,45604,Fujitsu  Minor Project Works,Finance Department,Payroll,"19,279.00"
2517794,FUJITSU SERVICES LIMITED,30/07/2012,45613,Fujitsu  Managed Service,Finance Department,FM Contract,"653,452.01"
2519131,G & G FABRICATIONS LTD,26/07/2012,47103,Miscellaneous Grants,Chief Executives Department,Neighbourhood Mgt and Area Working Devolved,"1,165.00"
2499129,GAFFEY TECHNICAL SERVICES LTD,12/07/2012,40605,Chemicals,Adult Services,Leisure  Jubilee Pool,502.22
2506153,GASKELL MCDOWALL CONSTRUCTION,12/07/2012,20100,Day To Day Maintenance,Environmental Services,Markets  Rent Account,562.00
2513307,GERRARD SEEL LTD,26/07/2012,41106,Bar Stock,Environmental Services,Civic Catering  Town Hall Bar,"1,048.32"
2505397,GIBSONS JOINERS & BUILDERS LTD,09/07/2012,Z1051,Work in Progress Additions,Housing GRF,Capital  General Fund,"3,822.80"
2514189,GIBSONS JOINERS & BUILDERS LTD,23/07/2012,Z1051,Work in Progress Additions,Housing GRF,Capital  General Fund,"11,278.75"
2503169,GL EDUCATION GROUP LTD,26/07/2012,40101,Operational Equipment Maint,Children's Services,Education Psychology Service,999.00
2507524,GLASDON UK LTD,19/07/2012,40609,Horticultural Materials,Environmental Services,Activities and Operations,611.24
2507031,GMS SERVICES LIMITED,12/07/2012,20102,Health & Safety,Property Services,Annual Charge Holding Account,"2,340.00"
2523032,GOBOUNCY LIMITED,31/07/2012,40100,Operational Equipment Purchase,Children's Services,Positive Activities,555.00
2505739,GOOD PEOPLE SERVICES LIMITED,09/07/2012,45914,Commissioning Worklessness,Development & Regen,The Work Programme,"1,240.00"
2506562,REDACTED - PERSONAL DATA,12/07/2012,48502,Legal Fees,Children's Services,Management Team,"1,000.00"
2506563,REDACTED - PERSONAL DATA,12/07/2012,48502,Legal Fees,Children's Services,Management Team,700.00
2505426,REDACTED - PERSONAL DATA,09/07/2012,Z1051,Work in Progress Additions,Housing GRF,Capital  General Fund,"3,843.48"
2505424,REDACTED - PERSONAL DATA,09/07/2012,Z1051,Work in Progress Additions,Housing GRF,Capital  General Fund,"5,874.57"
2506474,GREAT PLACES HOUSING ASSOCIATION,12/07/2012,52200,Contracted Services,Adult Services,Supporting People  Capital Financing,"28,060.23"
2511365,GREAT PLACES HOUSING ASSOCIATION,19/07/2012,52210,Contracted Services  Rental Voids,Adult Services,LD Provider  Supported Housing,505.96
2520328,GREAT PLACES HOUSING ASSOCIATION,30/07/2012,52210,Contracted Services  Rental Voids,Adult Services,LD Provider  Supported Housing,527.84
2509287,GREAT PLACES HOUSING GROUP,19/07/2012,52200,Contracted Services,Adult Services,LD Purchaser Supported Housing,716.60
2518890,GREAT PLACES HOUSING GROUP,26/07/2012,28100,Other Prem Insurance Direct,Housing GRF,Prevention  Repossessions & Evictions,"1,722.41"
2511300,GREENBOOTH CONSTRUCTION CO LTD,19/07/2012,20501,Engineering Work,Environmental Services,Highway Services,616.17
2511286,GREENBOOTH CONSTRUCTION CO LTD,19/07/2012,20501,Engineering Work,Environmental Services,Highway Services,"2,925.68"
2511278,GREENBOOTH CONSTRUCTION CO LTD,19/07/2012,20501,Engineering Work,Environmental Services,Highway Services,865.48
2511303,GREENBOOTH CONSTRUCTION CO LTD,19/07/2012,20501,Engineering Work,Environmental Services,Highway Services,"1,644.84"
2511273,GREENBOOTH CONSTRUCTION CO LTD,19/07/2012,20501,Engineering Work,Environmental Services,Highway Services,"1,075.91"
2511270,GREENBOOTH CONSTRUCTION CO LTD,19/07/2012,20501,Engineering Work,Environmental Services,Highway Services,"1,392.30"
2510408,GREENBOOTH CONSTRUCTION CO LTD,16/07/2012,20501,Engineering Work,Environmental Services,Highway Services,"4,640.95"
2511320,GREENBOOTH CONSTRUCTION CO LTD,19/07/2012,20501,Engineering Work,Environmental Services,Highway Management,893.76
2511308,GREENBOOTH CONSTRUCTION CO LTD,19/07/2012,20501,Engineering Work,Environmental Services,Highway Management,"1,647.75"
2511306,GREENBOOTH CONSTRUCTION CO LTD,19/07/2012,20501,Engineering Work,Environmental Services,Highway Management,"1,351.47"
2511311,GREENBOOTH CONSTRUCTION CO LTD,19/07/2012,20501,Engineering Work,Environmental Services,Lighting / Stores Billable Costs,680.00
2511309,GREENBOOTH CONSTRUCTION CO LTD,19/07/2012,20501,Engineering Work,Environmental Services,Lighting / Stores Billable Costs,680.00
2511288,GREENBOOTH CONSTRUCTION CO LTD,19/07/2012,20501,Engineering Work,Environmental Services,Lighting / Stores Billable Costs,"1,957.67"
2511314,GREENBOOTH CONSTRUCTION CO LTD,19/07/2012,20501,Engineering Work,Environmental Services,Lighting / Stores Billable Costs,680.00
2502368,GREENLANDS RESIDENTIAL HOME#REDACTED - PERSONAL DATA,04/07/2012,54301,Residential Provision,Adult Services,OA  External Provision Residential,"26,550.00"
2506968,GROUNDWORKS & LEISURE SERVICES LTD,19/07/2012,52200,Contracted Services,Environmental Services,Activities and Operations,"5,802.00"
2508172,GULLIVERS TRUCK HIRE LTD,16/07/2012,33201,Transport Hire,Environmental Services,Transport Support Service,"2,750.00"
2522387,GULLIVERS TRUCK HIRE LTD,30/07/2012,33201,Transport Hire,Environmental Services,Transport Support Service,"2,625.00"
2504238,REDACTED - PERSONAL DATA T/A BOLTON BLACK CAB,09/07/2012,33201,Transport Hire,Environmental Services,SNT Adult Servs,"1,424.00"
2520619,REDACTED - PERSONAL DATA T/A BOLTON BLACK CAB,30/07/2012,33201,Transport Hire,Environmental Services,SNT Adult Servs,"1,335.00"
2513568,HALTON CONTAINER SERVICES LTD,23/07/2012,53000,Private Contracted Services,Environmental Services,Trade Waste,657.60
2506477,HANOVER HOUSING ASSOCIATION#2,12/07/2012,52200,Contracted Services,Adult Services,Supporting People  Capital Financing,"2,088.42"
2503075,HARMONY YOUTH PROJECT,05/07/2012,52200,Contracted Services,Children's Services,Admin Commissioning,"4,500.00"
2506931,HART PSYCHOLOGICAL CONSULTING,12/07/2012,48509,Other Fees,Children's Services,Management Team,708.75
2512802,HART PSYCHOLOGICAL CONSULTING,19/07/2012,48509,Other Fees,Children's Services,Management Team,888.00
2506555,HAYMARKET MEDIA GROUP#HAYMARKET PUBLISHING SERVICES LTD,12/07/2012,45401,Computer Maintenance,Development & Regen,Development Management,780.00
2520943,HEALTHWORK LTD,30/07/2012,55711,Medical Referees Fees,Chief Executives Department,Occ Health Holding Code,"1,100.00"
2515774,HEALTHWORK LTD,23/07/2012,55711,Medical Referees Fees,Chief Executives Department,Occ Health Holding Code,825.00
2515688,HEARTLIFT#ANDREA WOOD,23/07/2012,52200,Contracted Services,Children's Services,Admin Commissioning,"3,264.00"
2505416,HEMMING GROUP LIMITED,09/07/2012,48200,Advertising General,Environmental Services,Markets  Rent Account,"1,008.00"
2517537,HENRY ALTY LIMITED,30/07/2012,40609,Horticultural Materials,Environmental Services,Heaton Fold,982.60
2502369,HILLCREST CARE LTD,04/07/2012,54301,Residential Provision,Adult Services,LD Purchaser Residential Care,"6,088.40"
2507510,HOLGATE HOUSE LIMITED,12/07/2012,54301,Residential Provision,Adult Services,Drugs Rehab Budget,"1,441.25"
2498437,HOME START BOLTON,02/07/2012,52200,Contracted Services,Children's Services,Admin Commissioning,"25,000.00"
2520874,HOMECARE 4 U#BOLTON,30/07/2012,52200,Contracted Services,Adult Services,OA  Home Care Services external provision,"7,204.73"
2508283,HOMECARE FOR YOU LTD#BLACKBURN,16/07/2012,52200,Contracted Services,Adult Services,OA  Home Care Services external provision,"5,459.66"
2506214,HOMECARE FOR YOU LTD#BLACKBURN,12/07/2012,52200,Contracted Services,Adult Services,OA  Home Care Services external provision,"7,400.33"
2510362,HOMECARE SUPPORT,16/07/2012,52200,Contracted Services,Adult Services,OA  Home Care Services external provision,"18,386.97"
2506208,HOMECARE SUPPORT,12/07/2012,52200,Contracted Services,Adult Services,OA  Home Care Services external provision,"30,218.16"
2502373,HOMELEA RESIDENTIAL CARE HOME,04/07/2012,54301,Residential Provision,Adult Services,OA  External Provision Residential,"2,215.15"
2513398,HOUSE OF FLAGS LIMITED,23/07/2012,48203,Marketing,Central Services,Marketing  General,"1,955.00"
2517310,HOUSING PARTNERS LTD,23/07/2012,48510,Consultancy Fees,Housing GRF,Find a Home,850.00
2504257,I K CARS#REDACTED - PERSONAL DATA,09/07/2012,33201,Transport Hire,Environmental Services,SNT Adult Servs,"1,494.40"
2520730,I K CARS#REDACTED - PERSONAL DATA,30/07/2012,33201,Transport Hire,Environmental Services,SNT Adult Servs,"1,587.80"
2520659,REDACTED - PERSONAL DATA,30/07/2012,33201,Transport Hire,Environmental Services,SNT Adult Servs,"1,920.00"
2504254,REDACTED - PERSONAL DATA,09/07/2012,33201,Transport Hire,Environmental Services,SNT Adult Servs,"2,048.00"
2520726,REDACTED - PERSONAL DATA#SENTINEL,30/07/2012,33201,Transport Hire,Environmental Services,SNT Adult Servs,"1,215.00"
2504256,REDACTED - PERSONAL DATA#SENTINEL,09/07/2012,33201,Transport Hire,Environmental Services,SNT Adult Servs,"1,296.00"
2513091,IDEASBYNET,19/07/2012,48203,Marketing,Housing GRF,Access & Advice Choice Based Lettings,529.08
2519128,IDOX INFORMATION SOLUTIONS LTD,26/07/2012,45431,Computer Software Licences,Children's Services,Admin General,"6,500.00"
2502769,IDOX SOFTWARE LTD,05/07/2012,40100,Operational Equipment Purchase,Environmental Services,Regulatory Services,"4,366.81"
2517633,IDOX SOFTWARE LTD,30/07/2012,45431,Computer Software Licences,Development & Regen,Spatial Data  from GIS,"17,454.55"
2504252,IFTIKHAR CAB#REDACTED - PERSONAL DATA,09/07/2012,33201,Transport Hire,Environmental Services,SNT Adult Servs,879.36
2507068,IKEN BUSINESS LTD,12/07/2012,45430,Computer Software,Property Services,Business Support,697.71
2503462,IMPRESSION (BOLTON) LIMITED#1,05/07/2012,48203,Marketing,Central Services,Marketing  General,559.00
2519041,IMPRESSION (BOLTON) LIMITED#1,26/07/2012,48203,Marketing,Central Services,Marketing  General,"1,400.00"
2519056,IMPRESSION (BOLTON) LIMITED#1,26/07/2012,48203,Marketing,Central Services,Marketing  General,556.00
2515500,INDEPENDENT CHILDCARE GROUP OF SCHOOLS LTD#ADVANCED CHILDCARE,26/07/2012,52000,Vol Assoc Grants  General,Children's Services,Res Serv Agency Placements,"3,712.41"
2513886,INDEPENDENT CHILDCARE GROUP OF SCHOOLS LTD#ADVANCED CHILDCARE,26/07/2012,52000,Vol Assoc Grants  General,Children's Services,Res Serv Agency Placements,"8,567.10"
2502920,INFO TECHNOLOGY SUPPLY LIMITED,05/07/2012,45401,Computer Maintenance,Finance Department,Libraries Info. Systems,"4,957.91"
2505583,INSYT MEDIA PRODUCTIONS,09/07/2012,19103,Training Exp  In House,Chief Executives Department,Neighbourhood Mgt and Area Working Devolved,"2,250.00"
2517372,INTEGRAL UK LTD,23/07/2012,20100,Day To Day Maintenance,Central Corporate,Bolton Enterprise Centre,"2,726.83"
2503848,INTEGRAL UK LTD,16/07/2012,20100,Day To Day Maintenance,Central Corporate,Bolton Enterprise Centre,"1,415.50"
2513521,INTEGRAL UK LTD,23/07/2012,Z1051,Work in Progress Additions,Adult Services,Adult Services Balance Sheet,"13,812.00"
2502378,INTEGRATE (PRESTON & CHORLEY) LTD,05/07/2012,52200,Contracted Services,Adult Services,LD Purchaser Domiciliary Care,"5,719.16"
2502824,INTERIOR PARTNERS LTD,16/07/2012,Z1051,Work in Progress Additions,Adult Services,Adult Services Balance Sheet,"4,771.00"
2502822,INTERIOR PARTNERS LTD,16/07/2012,Z1051,Work in Progress Additions,Adult Services,Adult Services Balance Sheet,"1,358.55"
2518894,INTRINSIC TECHNOLOGY LTD,26/07/2012,45401,Computer Maintenance,Finance Department,C.R.M. Operations,712.00
2506480,IRWELL VALLEY HOUSING ASSOCIATION,12/07/2012,52200,Contracted Services,Adult Services,Supporting People  Capital Financing,"22,138.23"
2504258,REDACTED - PERSONAL DATA#LADYBRIDGE PRIVATE HIRE,09/07/2012,33201,Transport Hire,Environmental Services,SNT Adult Servs,"3,156.79"
2520732,REDACTED - PERSONAL DATA#LADYBRIDGE PRIVATE HIRE,30/07/2012,33201,Transport Hire,Environmental Services,SNT Adult Servs,"2,730.00"
2505417,J & L PRINCE BUILDERS,09/07/2012,Z1051,Work in Progress Additions,Housing GRF,Capital  General Fund,"4,112.74"
2514205,J A GRUNDY & SONS,23/07/2012,Z1051,Work in Progress Additions,Housing GRF,Capital  General Fund,"3,601.00"
2507665,J A TYRE SERVICE,16/07/2012,31303,Tyres,Environmental Services,Transport Support Service,"1,422.45"
2507676,J A TYRE SERVICE,16/07/2012,31303,Tyres,Environmental Services,Transport Support Service,515.50
2519626,J A TYRE SERVICE,26/07/2012,31303,Tyres,Environmental Services,Transport Support Service,661.62
2519633,J A TYRE SERVICE,26/07/2012,31303,Tyres,Environmental Services,Transport Support Service,826.90
2507693,J DICKINSON & SONS (HORWICH) LTD#2,16/07/2012,Z6008,Expense AP Accrual,Bolton MBC Balance Sheet,Bolton MBC Balance Sheet,504.33
2519559,J DICKINSON & SONS (HORWICH) LTD#2,26/07/2012,26106,Refuse Collection,Environmental Services,Activities and Operations,759.90
2519559,J DICKINSON & SONS (HORWICH) LTD#2,26/07/2012,26106,Refuse Collection,Environmental Services,Bereavement Services,660.80
2511331,J DICKINSON & SONS (HORWICH) LTD#2,19/07/2012,40601,General Materials,Environmental Services,Activities and Operations,533.71
2511321,J DICKINSON & SONS (HORWICH) LTD#2,19/07/2012,40601,General Materials,Environmental Services,Activities and Operations,556.24
2511409,J DICKINSON & SONS (HORWICH) LTD#2,19/07/2012,52200,Contracted Services,Environmental Services,Activities and Operations,"1,296.65"
2503918,J DICKINSON & SONS (HORWICH) LTD#2,09/07/2012,33202,Plant Hire,Environmental Services,Bereavement Services,959.85
2520267,J DICKINSON & SONS (HORWICH) LTD#2,30/07/2012,40610,Direct Materials,Environmental Services,Highway Services,"3,855.10"
2519812,J DICKINSON & SONS (HORWICH) LTD#2,30/07/2012,20501,Engineering Work,Environmental Services,Highways Managers,"2,118.33"
2519814,J DICKINSON & SONS (HORWICH) LTD#2,30/07/2012,20501,Engineering Work,Environmental Services,Highways Managers,774.81
2513746,J DICKINSON & SONS (HORWICH) LTD#2,19/07/2012,20501,Engineering Work,Environmental Services,Highways Managers,641.95
2513750,J DICKINSON & SONS (HORWICH) LTD#2,19/07/2012,20501,Engineering Work,Environmental Services,Highways Managers,"1,418.66"
2513753,J DICKINSON & SONS (HORWICH) LTD#2,19/07/2012,20501,Engineering Work,Environmental Services,Highways Managers,"2,357.73"
2514108,J DICKINSON & SONS (HORWICH) LTD#2,23/07/2012,Z6008,Expense AP Accrual,Bolton MBC Balance Sheet,Bolton MBC Balance Sheet,591.27
2514112,J DICKINSON & SONS (HORWICH) LTD#2,23/07/2012,Z6008,Expense AP Accrual,Bolton MBC Balance Sheet,Bolton MBC Balance Sheet,704.51
2502694,J DICKINSON & SONS (HORWICH) LTD#2,05/07/2012,Z6008,Expense AP Accrual,Bolton MBC Balance Sheet,Bolton MBC Balance Sheet,591.27
2507691,J DICKINSON & SONS (HORWICH) LTD#2,16/07/2012,Z6008,Expense AP Accrual,Bolton MBC Balance Sheet,Bolton MBC Balance Sheet,504.33
2513623,J HOPKINS (CONTRACTORS) LTD,26/07/2012,Z6008,Expense AP Accrual,Bolton MBC Balance Sheet,Bolton MBC Balance Sheet,"2,520.00"
2507527,J HOPKINS (CONTRACTORS) LTD,19/07/2012,Z6008,Expense AP Accrual,Bolton MBC Balance Sheet,Bolton MBC Balance Sheet,"4,536.00"
2511299,J HOPKINS (CONTRACTORS) LTD,19/07/2012,Z6008,Expense AP Accrual,Bolton MBC Balance Sheet,Bolton MBC Balance Sheet,"11,565.41"
2517825,J HOPKINS (CONTRACTORS) LTD,26/07/2012,Z1051,Work in Progress Additions,Highways,Stores,"2,662.24"
2517803,J HOPKINS (CONTRACTORS) LTD,26/07/2012,Z1051,Work in Progress Additions,Highways,Stores,"6,492.09"
2517823,J HOPKINS (CONTRACTORS) LTD,26/07/2012,Z1051,Work in Progress Additions,Highways,Stores,"3,037.86"
2498686,J PHILLIPS & SONS LTD#1,05/07/2012,52200,Contracted Services,Property Services,Projects,"3,110.00"
2514149,J PHILLIPS & SONS LTD#1,23/07/2012,Z1051,Work in Progress Additions,Housing GRF,Capital  General Fund,"5,148.15"
2515705,JAMES LECKEY DESIGN LTD,23/07/2012,44051,Clients Aids & Adaptations,Adult Services,AD ICES,"1,180.00"
2518981,REDACTED - PERSONAL DATA,26/07/2012,48502,Legal Fees,Children's Services,Management Team,550.00
2518992,REDACTED - PERSONAL DATA,26/07/2012,48502,Legal Fees,Children's Services,Management Team,850.00
2503094,REDACTED - PERSONAL DATA,05/07/2012,48502,Legal Fees,Children's Services,Management Team,"1,300.00"
2502364,JENX LIMITED,19/07/2012,44051,Clients Aids & Adaptations,Adult Services,AD ICES,709.00
2505710,JO HOSSLE-STANDRING T/A JORCHID,09/07/2012,50002,Other Agency/Contracted Services,Chief Executives Department,Occ Health Holding Code,"1,280.00"
2520929,REDACTED - PERSONAL DATA,30/07/2012,52000,Vol Assoc Grants  General,Children's Services,Early Years & Childcare,"1,400.00"
2515433,JOHNSTON SWEEPERS LIMITED,23/07/2012,31305,Vehicle Servicing,Environmental Services,Transport Support Service,902.63
2502302,JUST ONE RECRUITMENT & TRAINING LTD,12/07/2012,52000,Vol Assoc Grants  General,Children's Services,Res Serv Agency Placements,516.50
2502301,JUST ONE RECRUITMENT & TRAINING LTD,12/07/2012,52000,Vol Assoc Grants  General,Children's Services,Res Serv Agency Placements,726.50
2515506,KALEIDOSCOPE CARE (NORTHWEST) LTD,26/07/2012,52000,Vol Assoc Grants  General,Children's Services,Res Serv Agency Placements,"9,600.00"
2503319,KANA SOFTWARE IRELAND LIMITED#KANA SOLUTIONS,16/07/2012,45432,Computer Software Installation,Finance Department,C.R.M. Operations,"2,900.00"
2513744,KAYS TRAFFIC MANAGEMENT SYSTEMS LTD,26/07/2012,Z6008,Expense AP Accrual,Bolton MBC Balance Sheet,Bolton MBC Balance Sheet,800.00
2503125,KAYS TRAFFIC MANAGEMENT SYSTEMS LTD,12/07/2012,52200,Contracted Services,Environmental Services,Activities and Operations,"1,770.00"
2508238,KCOM GROUP PLC,16/07/2012,45600,Fujitsu  Data N/wk Line Rent,Adult Services,AD Physical Disabilities,666.66
2508238,KCOM GROUP PLC,16/07/2012,45600,Fujitsu  Data N/wk Line Rent,Children's Services,Kearsley CC,"6,300.00"
2508238,KCOM GROUP PLC,16/07/2012,45600,Fujitsu  Data N/wk Line Rent,Children's Services,Leverhulme CC,"3,200.00"
2508238,KCOM GROUP PLC,16/07/2012,45600,Fujitsu  Data N/wk Line Rent,Children's Services,Oldhams CC,524.99
2508238,KCOM GROUP PLC,16/07/2012,45600,Fujitsu  Data N/wk Line Rent,Children's Services,Tonge CC,841.50
2508238,KCOM GROUP PLC,16/07/2012,45600,Fujitsu  Data N/wk Line Rent,Children's Services,Westhoughton CC,"7,600.00"
2519718,KCOM GROUP PLC,30/07/2012,45408,Modems & Lines,Environmental Services,Assets,"3,657.14"
2506472,KCOM GROUP PLC,12/07/2012,45600,Fujitsu  Data N/wk Line Rent,Children's Services,The Orchards CC,"1,163.16"
2506472,KCOM GROUP PLC,12/07/2012,Z1051,Work in Progress Additions,Finance Department,Finance Balance Sheet,884.58
2503418,KCOM GROUP PLC,26/07/2012,40101,Operational Equipment Maint,Children's Services,Admin IT (Schools),629.41
2503419,KCOM GROUP PLC,26/07/2012,40101,Operational Equipment Maint,Children's Services,Admin IT (Schools),588.24
2503420,KCOM GROUP PLC,26/07/2012,40101,Operational Equipment Maint,Children's Services,Admin IT (Schools),588.24
2503422,KCOM GROUP PLC,26/07/2012,40101,Operational Equipment Maint,Children's Services,Admin IT (Schools),"1,617.65"
2503423,KCOM GROUP PLC,26/07/2012,40101,Operational Equipment Maint,Children's Services,Admin IT (Schools),"6,735.29"
2503424,KCOM GROUP PLC,26/07/2012,40101,Operational Equipment Maint,Children's Services,Admin IT (Schools),764.71
2503425,KCOM GROUP PLC,26/07/2012,40101,Operational Equipment Maint,Children's Services,Admin IT (Schools),"2,054.85"
2503421,KCOM GROUP PLC,26/07/2012,40101,Operational Equipment Maint,Children's Services,Admin IT (Schools),"2,794.12"
2504019,KCOM GROUP PLC,26/07/2012,40101,Operational Equipment Maint,Children's Services,Admin IT (Schools),"4,485.00"
2504020,KCOM GROUP PLC,26/07/2012,40101,Operational Equipment Maint,Children's Services,Admin IT (Schools),"4,485.00"
2504021,KCOM GROUP PLC,26/07/2012,40101,Operational Equipment Maint,Children's Services,Admin IT (Schools),"4,758.00"
2504022,KCOM GROUP PLC,26/07/2012,40101,Operational Equipment Maint,Children's Services,Admin IT (Schools),"4,485.00"
2504023,KCOM GROUP PLC,26/07/2012,40101,Operational Equipment Maint,Children's Services,Admin IT (Schools),"4,485.00"
2504030,KCOM GROUP PLC,26/07/2012,40101,Operational Equipment Maint,Children's Services,Admin IT (Schools),"3,922.30"
2504025,KCOM GROUP PLC,26/07/2012,40101,Operational Equipment Maint,Children's Services,Admin IT (Schools),"3,636.30"
2504026,KCOM GROUP PLC,26/07/2012,40101,Operational Equipment Maint,Children's Services,Admin IT (Schools),"3,922.30"
2504027,KCOM GROUP PLC,26/07/2012,40101,Operational Equipment Maint,Children's Services,Admin IT (Schools),"3,922.30"
2504028,KCOM GROUP PLC,26/07/2012,40101,Operational Equipment Maint,Children's Services,Admin IT (Schools),"3,636.30"
2504029,KCOM GROUP PLC,26/07/2012,40101,Operational Equipment Maint,Children's Services,Admin IT (Schools),"3,922.30"
2504024,KCOM GROUP PLC,26/07/2012,40101,Operational Equipment Maint,Children's Services,Admin IT (Schools),"4,758.00"
2504018,KCOM GROUP PLC,26/07/2012,40100,Operational Equipment Purchase,Children's Services,Admin IT (Schools),"22,082.09"
2502409,KELLIBRATIONS BY KELLY DOOLEY,05/07/2012,40613,Goods for Resale,Environmental Services,Civic Catering  Town Hall Functions,696.00
2511374,KEY TRAFFIC SYSTEMS LTD,19/07/2012,45431,Computer Software Licences,Environmental Services,Activities and Operations,500.00
2506192,KEYMEN ASSOCIATES LTD#MAYDAY,12/07/2012,52200,Contracted Services,Adult Services,OA  Home Care Services external provision,"5,270.32"
2507302,KEYTRACKER LIMITED,19/07/2012,40100,Operational Equipment Purchase,Environmental Services,Waste,734.00
2513276,KITCHEQUIP.CO.UK#FACTOR KITCHEQUIP,23/07/2012,40100,Operational Equipment Purchase,Adult Services,OA  Community Meals,592.07
2502800,KPR MIDLINK LTD,05/07/2012,40101,Operational Equipment Maint,Environmental Services,Markets  Rent Account,"2,275.99"
2507961,LANCASHIRE TIPPERS,16/07/2012,52200,Contracted Services,Environmental Services,Transport Support Service,"1,878.50"
2520737,LESS TAXIS / REDACTED - PERSONAL DATA,30/07/2012,33201,Transport Hire,Environmental Services,SNT Adult Servs,"1,796.20"
2504259,LESS TAXIS / REDACTED - PERSONAL DATA,09/07/2012,33201,Transport Hire,Environmental Services,SNT Adult Servs,"2,052.80"
2506567,LEXISNEXIS UK,12/07/2012,40750,Text Books,Legal Trading,Legal Services Trading Account,500.15
2518068,LIAM TRIPPIER SCHOOL IMPROVEMENT LTD,30/07/2012,48509,Other Fees,Children's Services,Primary Commissioning,"1,980.00"
2518068,LIAM TRIPPIER SCHOOL IMPROVEMENT LTD,30/07/2012,48629,Miscellaneous Expenses,Children's Services,Primary Commissioning,"1,980.00"
2504261,LINK CARS,09/07/2012,33201,Transport Hire,Environmental Services,SNT Adult Servs,"1,494.08"
2520740,LINK CARS,30/07/2012,33201,Transport Hire,Environmental Services,SNT Adult Servs,"1,307.32"
2513257,LISCLARE LIMITED,23/07/2012,40100,Operational Equipment Purchase,Children's Services,Disability Serv Family Support Team,878.30
2514325,LITTLEDALE HALL THERAPEUTIC COMMUNITY,23/07/2012,54301,Residential Provision,Adult Services,Alcohol Rehab Budget,"2,845.78"
2506452,LM TRAINING & DEVELOPMENT,12/07/2012,48509,Other Fees,Children's Services,Payment by Results,600.00
2498562,LM TRAINING & DEVELOPMENT,02/07/2012,52000,Vol Assoc Grants  General,Children's Services,Early Years & Childcare,"2,400.00"
2506216,LOCAL SOLUTIONS,12/07/2012,52200,Contracted Services,Adult Services,OA  Home Care Services external provision,"16,804.31"
2506215,LOCAL SOLUTIONS,12/07/2012,52200,Contracted Services,Adult Services,OA  Home Care Services external provision,690.75
2514541,LPW (EUROPE) LTD,26/07/2012,31305,Vehicle Servicing,Environmental Services,Transport Support Service,976.50
2498617,LUCY ZODION LIMITED,02/07/2012,Z1051,Work in Progress Additions,Highways,Stores,"4,164.01"
2517532,MAKING SPACE#4,23/07/2012,52200,Contracted Services,Adult Services,MH Management,"4,776.54"
2517532,MAKING SPACE#4,23/07/2012,52200,Contracted Services,Adult Services,OA  Carers Grant,"6,743.21"
2517531,MAKING SPACE#4,23/07/2012,52200,Contracted Services,Adult Services,Supporting People  Capital Financing,"5,400.32"
2520532,MALCOLM NICHOLSON & SON,30/07/2012,36200,Uninsured Losses  Vehicles,Environmental Services,Transport Support Service,"1,065.10"
2509109,MALCOLM NICHOLSON & SON,16/07/2012,36200,Uninsured Losses  Vehicles,Environmental Services,Transport Support Service,588.00
2522616,MALROD INSULATIONS LTD,30/07/2012,20102,Health & Safety,Property Services,Brazley Centre,"1,895.00"
2511216,MANAGEMENT LEARNING RESOURCES LTD,23/07/2012,40750,Text Books,Chief Executives Department,Organisational Development,608.00
2513480,MANCHESTER SAFETY SERVICES LTD,23/07/2012,40610,Direct Materials,Environmental Services,Highways Depot,960.00
2513489,MANGAR INTERNATIONAL,23/07/2012,44051,Clients Aids & Adaptations,Adult Services,ICES,"1,650.00"
2515399,REDACTED - PERSONAL DATA,26/07/2012,19100,Training Exps Tuition Fees,Adult Services,Staff Development  Childrens,595.00
2505409,MARK FORREST & CO#2,09/07/2012,Z1051,Work in Progress Additions,Housing GRF,Capital  General Fund,"10,800.80"
2503746,MARK MANGNALL & SON,09/07/2012,20100,Day To Day Maintenance,Children's Services,Positive Activities,910.00
2504262,REDACTED - PERSONAL DATA,09/07/2012,33201,Transport Hire,Environmental Services,SNT Adult Servs,"1,296.00"
2520742,REDACTED - PERSONAL DATA,30/07/2012,33201,Transport Hire,Environmental Services,SNT Adult Servs,"1,215.00"
2513754,MARWOOD GROUP LIMITED,23/07/2012,33202,Plant Hire,Environmental Services,Highways Maintenance Billable Costs,"1,400.00"
2513758,REDACTED - PERSONAL DATA,26/07/2012,Z1051,Work in Progress Additions,Adult Services,Adult Services Balance Sheet,840.00
2519356,REDACTED - PERSONAL DATA,26/07/2012,48502,Legal Fees,Property Services,Estates & Property Management,600.00
2515929,MAY GURNEY FLEET AND PASSENGER SERVICES LTD,23/07/2012,33203,Contract Hire,Environmental Services,Transport Support Service,"73,750.04"
2498372,MAY GURNEY FLEET AND PASSENGER SERVICES LTD,02/07/2012,33203,Contract Hire,Environmental Services,Transport Support Service,"94,347.38"
2505376,MEALEY PROPERTIES LTD T/A BM PLUMBING & TILING,09/07/2012,Z1051,Work in Progress Additions,Housing GRF,Capital  General Fund,"3,861.00"
2506204,MEARS CARE LTD,12/07/2012,52200,Contracted Services,Adult Services,OA  Home Care Services external provision,"16,180.19"
2508279,MEARS CARE LTD,16/07/2012,52200,Contracted Services,Adult Services,OA  Home Care Services external provision,"16,098.60"
2510366,MEARS CARE LTD,16/07/2012,52200,Contracted Services,Adult Services,OA  Home Care Services external provision,"13,100.13"
2520829,REDACTED - PERSONAL DATA#SMA CARS,30/07/2012,33201,Transport Hire,Environmental Services,SNT Adult Servs,"2,774.00"
2504306,REDACTED - PERSONAL DATA#SMA CARS,09/07/2012,33201,Transport Hire,Environmental Services,SNT Adult Servs,"2,776.00"
2519013,MHIST,26/07/2012,52200,Contracted Services,Adult Services,MH Day Care External Provision,"5,250.00"
2506936,REDACTED - PERSONAL DATA,12/07/2012,48502,Legal Fees,Children's Services,Management Team,528.13
2514146,MINT NORTHWEST LTD,23/07/2012,Z1051,Work in Progress Additions,Housing GRF,Capital  General Fund,"2,682.02"
2514183,MINT NORTHWEST LTD,23/07/2012,Z1051,Work in Progress Additions,Housing GRF,Capital  General Fund,"4,663.21"
2503116,REDACTED - PERSONAL DATA,05/07/2012,48502,Legal Fees,Environmental Services,Regulatory Services,950.00
2515593,REDACTED - PERSONAL DATA,23/07/2012,48502,Legal Fees,Environmental Services,Insurance,500.00
2518986,REDACTED - PERSONAL DATA,26/07/2012,48502,Legal Fees,Environmental Services,Regulatory Services,750.00
2504272,REDACTED - PERSONAL DATA T/A PAL MINIBUSES,09/07/2012,33201,Transport Hire,Environmental Services,SNT Adult Servs,"1,296.00"
2520807,REDACTED - PERSONAL DATA T/A PAL MINIBUSES,30/07/2012,33201,Transport Hire,Environmental Services,SNT Adult Servs,"1,134.00"
2504248,MOHAMMAD HANIF MULLA#DAUBHILL MINI BUS,09/07/2012,33201,Transport Hire,Environmental Services,SNT Adult Servs,"1,464.00"
2520651,MOHAMMAD HANIF MULLA#DAUBHILL MINI BUS,30/07/2012,33201,Transport Hire,Environmental Services,SNT Adult Servs,"1,281.00"
2512785,MOORE ASSOCIATES LIMITED,19/07/2012,48509,Other Fees,Children's Services,Management Team,833.04
2505434,MORGAN HEATING ENGINEERS,09/07/2012,Z1051,Work in Progress Additions,Housing GRF,Capital  General Fund,"4,500.00"
2509285,MORGAN HEATING ENGINEERS,16/07/2012,Z1051,Work in Progress Additions,Housing GRF,Capital  General Fund,"1,500.00"
2509271,MORGAN HEATING ENGINEERS,16/07/2012,Z1051,Work in Progress Additions,Housing GRF,Capital  General Fund,"1,153.51"
2504237,REDACTED - PERSONAL DATA T/A ATLAS LUXURY MINIBUS,09/07/2012,33201,Transport Hire,Environmental Services,SNT Adult Servs,"1,578.00"
2520616,REDACTED - PERSONAL DATA T/A ATLAS LUXURY MINIBUS,30/07/2012,33201,Transport Hire,Environmental Services,SNT Adult Servs,"1,369.50"
2503103,REDACTED - PERSONAL DATA,05/07/2012,48502,Legal Fees,Children's Services,Management Team,"3,325.00"
2520636,MR MOHAMMED IQBAL T/A COBRA PRIVATE HIRE,30/07/2012,33201,Transport Hire,Environmental Services,SNT Adult Servs,"2,217.00"
2504244,MR MOHAMMED IQBAL T/A COBRA PRIVATE HIRE,09/07/2012,33201,Transport Hire,Environmental Services,SNT Adult Servs,"2,148.00"
2503113,REDACTED - PERSONAL DATA,05/07/2012,48502,Legal Fees,Children's Services,Management Team,"4,100.00"
2504275,REDACTED - PERSONAL DATA,09/07/2012,33201,Transport Hire,Environmental Services,SNT Adult Servs,992.00
2520812,REDACTED - PERSONAL DATA,30/07/2012,33201,Transport Hire,Environmental Services,SNT Adult Servs,930.00
2506198,MULTI MEDIA MACHINE,12/07/2012,48201,Property Advertising,Housing GRF,Find a Home,"1,300.00"
2504264,NADY MINIBUS#REDACTED - PERSONAL DATA,09/07/2012,33201,Transport Hire,Environmental Services,SNT Adult Servs,"1,680.80"
2520760,NADY MINIBUS#REDACTED - PERSONAL DATA,30/07/2012,33201,Transport Hire,Environmental Services,SNT Adult Servs,"2,903.20"
2498790,NALESTAR LTD,12/07/2012,42001,Uniforms,Environmental Services,Building Cleaning,"3,945.40"
2522944,NATIONAL CAR PARKS LTD#NCP,31/07/2012,Z1051,Work in Progress Additions,Central Corporate,Corporate Property Balance Sheet,"48,637.39"
2519351,NATIONAL GRID,26/07/2012,Z1051,Work in Progress Additions,Housing GRF,Capital  General Fund,"2,541.00"
2506432,NEW START CHILDCARE,12/07/2012,52000,Vol Assoc Grants  General,Children's Services,Res Serv Agency Placements,"15,600.00"
2513223,NEWSQUEST (NORTH WEST) LTD,23/07/2012,48502,Legal Fees,Environmental Services,Insurance,507.60
2517826,NEWSQUEST (NORTH WEST) LTD,30/07/2012,48203,Marketing,Central Services,Marketing  General,541.00
2513222,NEWSQUEST (NORTH WEST) LTD,23/07/2012,48202,General Publicity,Development & Regen,Development Management,537.80
2518861,NEWSQUEST (NORTH WEST) LTD,30/07/2012,48202,General Publicity,Development & Regen,Development Management,538.40
2502790,NIFES CONSULTING GROUP,05/07/2012,Z1051,Work in Progress Additions,Environmental Services,Environmental Services Balance sheet,"3,250.00"
2520769,REDACTED - PERSONAL DATA,30/07/2012,33201,Transport Hire,Environmental Services,SNT Adult Servs,"2,121.60"
2504265,REDACTED - PERSONAL DATA,09/07/2012,33201,Transport Hire,Environmental Services,SNT Adult Servs,"1,996.80"
2518182,NMEG T/A BOLTON ENTERPRISE CENTRE,26/07/2012,22006,Rent of Storage Facilities,Finance Department,Museum Premises,"2,693.89"
2518181,NMEG T/A BOLTON ENTERPRISE CENTRE,26/07/2012,22006,Rent of Storage Facilities,Finance Department,Museum Premises,"1,602.32"
2522471,NOBLET MUNICIPAL SVCS LTD,30/07/2012,33201,Transport Hire,Environmental Services,Transport Support Service,520.00
2502317,NORTHERN EDUCATION,16/07/2012,48209,Consultation Costs,Children's Services,Primary Commissioning,"1,220.00"
2515503,NORTHERNCARE#WHISTLEDAWN LTD,26/07/2012,52000,Vol Assoc Grants  General,Children's Services,Res Serv Agency Placements,"13,259.14"
2522425,NORTHGATE VEHICLE HIRE LTD,30/07/2012,33201,Transport Hire,Environmental Services,Transport Support Service,"2,005.03"
2504416,NORTHGATE VEHICLE HIRE LTD,09/07/2012,33201,Transport Hire,Environmental Services,Transport Support Service,"7,102.35"
2504375,NORTHGATE VEHICLE HIRE LTD,09/07/2012,33201,Transport Hire,Environmental Services,Transport Support Service,"8,174.77"
2522646,NORTHGATE VEHICLE HIRE LTD,30/07/2012,33201,Transport Hire,Environmental Services,Transport Support Service,"3,096.50"
2504266,NORTHWEST MINIBUSES,09/07/2012,33201,Transport Hire,Environmental Services,SNT Adult Servs,"6,285.60"
2502711,NORTHWEST MINIBUSES,05/07/2012,33201,Transport Hire,Environmental Services,SNT Adult Servs,"1,980.00"
2520783,NORTHWEST MINIBUSES,30/07/2012,33201,Transport Hire,Environmental Services,SNT Adult Servs,"5,695.15"
2519584,NP LAWYERS,31/07/2012,Z1051,Work in Progress Additions,Development & Regen,Development & Regeneration Capital,"88,500.00"
2513147,NP LAWYERS,23/07/2012,Z1051,Work in Progress Additions,Development & Regen,Development & Regeneration Capital,"8,500.00"
2510871,NPOWER LIMITED,16/07/2012,21100,Electricity  General,Environmental Services,Mngmnt & Admin Overhead,"13,873.98"
2510871,NPOWER LIMITED,16/07/2012,21100,Electricity  General,Property Services,Admin Buildings  General,"31,837.00"
2510871,NPOWER LIMITED,16/07/2012,21100,Electricity  General,Property Services,Adult's General,626.28
2510871,NPOWER LIMITED,16/07/2012,21100,Electricity  General,Property Services,Castle Hill,"7,257.64"
2510871,NPOWER LIMITED,16/07/2012,21100,Electricity  General,Housing GRF,Communal Services Capital And Admin.,"1,141.96"
2510871,NPOWER LIMITED,16/07/2012,21100,Electricity  General,Central Corporate,Land & Property,940.55
2517396,NPOWER LIMITED,23/07/2012,21100,Electricity  General,Environmental Services,Mngmnt & Admin Overhead,"14,258.45"
2517396,NPOWER LIMITED,23/07/2012,21100,Electricity  General,Property Services,Admin Buildings  General,"8,567.16"
2517396,NPOWER LIMITED,23/07/2012,21100,Electricity  General,Property Services,Adult's General,"14,471.20"
2517396,NPOWER LIMITED,23/07/2012,21100,Electricity  General,Housing GRF,Communal Services Capital And Admin.,"2,309.37"
2517396,NPOWER LIMITED,23/07/2012,21100,Electricity  General,Central Corporate,Land & Property,"1,920.31"
2505661,NPOWER LIMITED,09/07/2012,21100,Electricity  General,Housing GRF,Communal Services Capital And Admin.,818.29
2505661,NPOWER LIMITED,09/07/2012,21100,Electricity  General,Central Corporate,Land & Property,"3,157.52"
2510722,NPOWER LIMITED,16/07/2012,21100,Electricity  General,Housing GRF,Communal Services Capital And Admin.,580.93
2503085,NPOWER LIMITED,05/07/2012,21100,Electricity  General,Environmental Services,Engineering Projects,"207,449.00"
2503085,NPOWER LIMITED,05/07/2012,21100,Electricity  General,Environmental Services,Parking Services  Off Street,511.05
2519142,NPOWER LIMITED,26/07/2012,21100,Electricity  General,Environmental Services,Engineering Projects,"90,636.98"
2518457,NSL LIMITED#NSL SERVICES GROUP,30/07/2012,44202,Contract UnitNonLEA,Environmental Services,Parking Services  On Street,"5,585.69"
2503318,NUGENT CARE#BOLTON PROJECT,05/07/2012,52200,Contracted Services,Adult Services,LD Purchaser Day Services,"33,929.50"
2520800,NW UNITED LTD,30/07/2012,33201,Transport Hire,Environmental Services,SNT Adult Servs,"5,972.70"
2504268,NW UNITED LTD,09/07/2012,33201,Transport Hire,Environmental Services,SNT Adult Servs,"6,430.00"
2517822,NWN MEDIA LTD,30/07/2012,48203,Marketing,Central Services,Bolton Scene,"7,202.00"
2520457,NYMAS#NORTH YORKSHIRE MOBILITY & SAFETY,30/07/2012,44051,Clients Aids & Adaptations,Adult Services,ICES,544.00
2518883,OLYMPIA TRAVEL,26/07/2012,33201,Transport Hire,Environmental Services,SNT Adult Servs,"7,372.00"
2518886,OLYMPIA TRAVEL,26/07/2012,33201,Transport Hire,Environmental Services,SNT Adult Servs,"7,543.00"
2504269,OLYMPIC TRAVEL#REDACTED - PERSONAL DATA,09/07/2012,33201,Transport Hire,Environmental Services,SNT Adult Servs,"1,416.00"
2520801,OLYMPIC TRAVEL#REDACTED - PERSONAL DATA,30/07/2012,33201,Transport Hire,Environmental Services,SNT Adult Servs,"1,327.50"
2520806,ON TIME CARS#REDACTED - PERONAL DATA,30/07/2012,33201,Transport Hire,Environmental Services,SNT Adult Servs,983.25
2504270,ON TIME CARS#REDACTED - PERONAL DATA,09/07/2012,33201,Transport Hire,Environmental Services,SNT Adult Servs,"1,048.80"
2507135,ONESTAGE LTD,12/07/2012,44050,Clients Holidays,Children's Services,Music Serv  Events and External Funding,686.00
2502692,OUTDOOR UK LIMITED,05/07/2012,19100,Training Exps Tuition Fees,Children's Services,CWPD Programme,885.00
2519149,PARALLEL PARENTS,30/07/2012,52000,Vol Assoc Grants  General,Children's Services,Res Serv Agency Placements,"2,809.20"
2519150,PARALLEL PARENTS,30/07/2012,52000,Vol Assoc Grants  General,Children's Services,Res Serv Agency Placements,"3,042.90"
2519152,PARALLEL PARENTS,30/07/2012,52000,Vol Assoc Grants  General,Children's Services,Res Serv Agency Placements,"3,279.30"
2506966,PASTURE LTD T/A KHANS QUALITY FOODS (KQF),12/07/2012,41101,Catering ProvisionsFood,Environmental Services,Catering,"1,374.96"
2519354,PASTURE LTD T/A KHANS QUALITY FOODS (KQF),26/07/2012,41101,Catering ProvisionsFood,Environmental Services,Catering,"1,382.51"
2518990,REDACTED - PERSONAL DATA,26/07/2012,48502,Legal Fees,Children's Services,Management Team,"1,600.00"
2520841,REDACTED - PERSONAL DATA,30/07/2012,33201,Transport Hire,Environmental Services,SNT Adult Servs,870.00
2504312,REDACTED - PERSONAL DATA,09/07/2012,33201,Transport Hire,Environmental Services,SNT Adult Servs,928.00
2498421,PAWS FOR KIDS,02/07/2012,55700,Grant Funded Expenditure,Chief Executives Department,Community Safety,"10,000.00"
2507712,PAWS FOR KIDS,16/07/2012,55700,Grant Funded Expenditure,Chief Executives Department,Community Safety,"4,000.00"
2505387,PC ELECTRICAL (UK) LTD,09/07/2012,Z1051,Work in Progress Additions,Housing GRF,Capital  General Fund,"1,302.00"
2507004,PEAK FABRICATIONS (BOLTON) LTD,12/07/2012,52200,Contracted Services,Environmental Services,Activities and Operations,720.00
2507000,PEAK FABRICATIONS (BOLTON) LTD,12/07/2012,52200,Contracted Services,Environmental Services,Activities and Operations,"1,708.00"
2507003,PEAK FABRICATIONS (BOLTON) LTD,12/07/2012,52200,Contracted Services,Environmental Services,Activities and Operations,"1,340.00"
2507007,PEAK FABRICATIONS (BOLTON) LTD,12/07/2012,52200,Contracted Services,Environmental Services,Activities and Operations,"1,270.00"
2519367,PERMANENT FUTURES LTD,30/07/2012,53102,Agency Staff  Other,Children's Services,Admin Info Mgemnt Unit,"2,280.00"
2502874,PERMANENT FUTURES LTD,12/07/2012,53102,Agency Staff  Other,Children's Services,Admin Info Mgemnt Unit,"3,800.00"
2520602,REDACTED - PERSONAL DATA T/A AKHTAR MINI BUSES,30/07/2012,33201,Transport Hire,Environmental Services,SNT Adult Servs,"1,190.00"
2504231,REDACTED - PERSONAL DATA T/A AKHTAR MINI BUSES,09/07/2012,33201,Transport Hire,Environmental Services,SNT Adult Servs,"1,360.00"
2511330,PETERS LTD,19/07/2012,40753,Book Fund Expenditure,Finance Department,Schools Library Services,"1,464.26"
2507507,PHOENIX FUTURES#PHOENIX HOUSE,12/07/2012,54301,Residential Provision,Adult Services,Alcohol Rehab Budget,"3,562.79"
2498592,PHS GROUP PLC,05/07/2012,20100,Day To Day Maintenance,Adult Services,Prop. Servs. Jubilee Pool,604.20
2498573,PHS GROUP PLC,05/07/2012,22001,Buildings Service Charge,Property Services,Castle Hill Training Rooms,"1,667.68"
2498586,PHS GROUP PLC,05/07/2012,20100,Day To Day Maintenance,Property Services,Le Mans Crescent  General,787.59
2498584,PHS GROUP PLC,05/07/2012,20100,Day To Day Maintenance,Property Services,Howell Croft House  Le Mans Crescent,540.06
2498577,PHS GROUP PLC,05/07/2012,20100,Day To Day Maintenance,Property Services,Wellsprings  BMBC,908.75
2518983,PIPS COURIER SERVICES#REDACTED - PERSONAL DATA,26/07/2012,48509,Other Fees,Children's Services,Management Team,552.00
2506481,PLACES FOR PEOPLE HOMES,12/07/2012,52200,Contracted Services,Adult Services,Supporting People  Capital Financing,"1,355.41"
2506482,PLACES FOR PEOPLE INDIVIDUAL SUPPORT,12/07/2012,52200,Contracted Services,Adult Services,Supporting People  Capital Financing,"5,449.58"
2506495,PLAYING WITH LEARNING LTD,23/07/2012,40601,General Materials,Children's Services,Early Years & Childcare,"1,000.21"
2514186,POLLOCK LIFTS,23/07/2012,Z1051,Work in Progress Additions,Housing GRF,Capital  General Fund,"7,362.43"
2519160,PORTFOLIO#ROTHWELL COMPANY LTD,26/07/2012,48203,Marketing,Central Services,Marketing  General,"1,417.50"
2519161,PORTFOLIO#ROTHWELL COMPANY LTD,26/07/2012,48203,Marketing,Central Services,Marketing  General,650.00
2513283,PORTMAN DOORS LTD,19/07/2012,20100,Day To Day Maintenance,Central Corporate,Pike Nook,776.30
2510372,POST OFFICE LTD,16/07/2012,31300,Vehicle Tax,Environmental Services,Transport Support Service,860.00
2498818,POWERCARE,05/07/2012,40101,Operational Equipment Maint,Environmental Services,Building Cleaning,581.35
2508277,PREMIER CARE LTD#BOLTON CARE SERVICES,16/07/2012,52200,Contracted Services,Adult Services,OA  Home Care Services external provision,"11,889.12"
2504274,PREMIER MINIBUSES (NW) LTD,09/07/2012,33201,Transport Hire,Environmental Services,SNT Adult Servs,"5,965.80"
2520811,PREMIER MINIBUSES (NW) LTD,30/07/2012,33201,Transport Hire,Environmental Services,SNT Adult Servs,"6,219.00"
2504336,PRIMARILY SCIENCE,09/07/2012,48509,Other Fees,Children's Services,Income � Teaching & Learning CPD,640.00
2507533,PRISM MEDICAL UK,16/07/2012,44051,Clients Aids & Adaptations,Adult Services,AD ICES,779.51
2515703,PRISM MEDICAL UK,23/07/2012,44051,Clients Aids & Adaptations,Adult Services,AD ICES,"1,710.21"
2518475,PRISM MEDICAL UK,30/07/2012,44051,Clients Aids & Adaptations,Adult Services,ICES,513.41
2515704,PRISM MEDICAL UK,23/07/2012,44051,Clients Aids & Adaptations,Adult Services,ICES,"1,767.20"
2503426,PROBRAND LIMITED,30/07/2012,45400,Computer Purchase,Children's Services,Admin IT (Schools),"1,764.09"
2499096,PROBRAND LIMITED,19/07/2012,45401,Computer Maintenance,Children's Services,Admin IT (Schools),"1,374.64"
2513279,QUADRANT SECURITY GROUP LTD,26/07/2012,25106,C.C.T.V.,Environmental Services,Security Services,614.67
2511298,QUADRANT SECURITY GROUP LTD,26/07/2012,25106,C.C.T.V.,Environmental Services,Security Services,"5,137.64"
2511301,QUADRANT SECURITY GROUP LTD,26/07/2012,25106,C.C.T.V.,Environmental Services,Security Services,"3,533.63"
2502688,R & T SHEPHERD LTD#2,05/07/2012,Z1051,Work in Progress Additions,Development & Regen,Development & Regeneration Capital,593.64
2505609,R S TYRER LTD,09/07/2012,34102,Staff/Officers   Bus Fares,Children's Services,Music ServMusic Service general,675.00
2504235,RAFIK PATEL#ALPHA LUXURY TRAVEL,09/07/2012,33201,Transport Hire,Environmental Services,SNT Adult Servs,"2,168.90"
2520614,RAFIK PATEL#ALPHA LUXURY TRAVEL,30/07/2012,33201,Transport Hire,Environmental Services,SNT Adult Servs,"1,566.00"
2498633,RAISE THE YOUTH FOUNDATION LTD,02/07/2012,55700,Grant Funded Expenditure,Chief Executives Department,Neighbourhood Mgt and Area Working Devolved,"2,330.00"
2519465,RANDSTAD EDUCATION LIMITED,30/07/2012,53102,Agency Staff  Other,Adult Services,Transport,575.00
2520588,RAPID PRIVATE HIRE LTD,30/07/2012,34402,Clients  Taxi Fares,Environmental Services,SNT Other,528.06
2498401,RAPID PRIVATE HIRE LTD,02/07/2012,33201,Transport Hire,Environmental Services,SNT Adult Servs,922.00
2518893,RAPID PRIVATE HIRE LTD,26/07/2012,33201,Transport Hire,Environmental Services,SNT Adult Servs,850.00
2518891,RAPID PRIVATE HIRE LTD,26/07/2012,33201,Transport Hire,Environmental Services,SNT Adult Servs,850.00
2509742,RAPID PRIVATE HIRE LTD,16/07/2012,33201,Transport Hire,Environmental Services,SNT Adult Servs,922.00
2509741,RAPID PRIVATE HIRE LTD,16/07/2012,33201,Transport Hire,Environmental Services,SNT Adult Servs,850.00
2509739,RAPID PRIVATE HIRE LTD,16/07/2012,33201,Transport Hire,Environmental Services,SNT Adult Servs,922.00
2518438,RDS NORTH WESTERN,30/07/2012,33202,Plant Hire,Environmental Services,Depots,558.00
2509290,RED ROSE PRESERVATIONS LTD,16/07/2012,Z1051,Work in Progress Additions,Housing GRF,Capital  General Fund,"3,552.00"
2503074,RELPHS FUNERAL SERVICE,05/07/2012,40601,General Materials,Adult Services,"AD Finance, Income & Assess. Team","1,400.00"
2510399,RESILIENT TRAINING AND CONSULTANCY LTD,16/07/2012,19104,Training Exp  Ext Seminars,Environmental Services,Civil Contingencies,"1,158.40"
2511354,RICOH UK LIMITED,26/07/2012,40141,Office Equipment Maintenance,Central Services,Text & Reprographics,731.70
2504304,RICOH UK LIMITED,09/07/2012,40141,Office Equipment Maintenance,Central Services,Text & Reprographics,560.00
2511352,RICOH UK LIMITED,26/07/2012,40141,Office Equipment Maintenance,Central Services,Text & Reprographics,764.69
2498641,RICS#ROYAL INSTITUTE OF CHARTERED SURVEYORS,02/07/2012,47200,General Subscriptions,Property Services,Estates & Property Management,615.00
2513786,ROAD MAINTENANCE SERVICES LTD,26/07/2012,Z1051,Work in Progress Additions,Highways,Stores,"86,101.88"
2513162,ROBINSON PLANT HIRE,19/07/2012,33202,Plant Hire,Environmental Services,Activities and Operations,661.78
2513158,ROBINSON PLANT HIRE,19/07/2012,33202,Plant Hire,Environmental Services,Activities and Operations,661.78
2507522,ROYAL MAIL GROUP LTD,12/07/2012,45000,Postages Direct Costs,Finance Department,Council Tax,"1,272.36"
2507522,ROYAL MAIL GROUP LTD,12/07/2012,45000,Postages Direct Costs,Finance Department,Housing Benefits,"1,000.99"
2504114,ROYAL MAIL GROUP LTD,09/07/2012,45002,Postage Charge,Children's Services,Management Team,"1,560.00"
2514101,ROYAL MAIL GROUP LTD,23/07/2012,45000,Postages Direct Costs,Finance Department,Council Tax,"2,604.87"
2514101,ROYAL MAIL GROUP LTD,23/07/2012,45000,Postages Direct Costs,Finance Department,Housing Benefits,761.22
2498575,ROYAL MAIL GROUP LTD,02/07/2012,45000,Postages Direct Costs,Finance Department,Council Tax,800.07
2498575,ROYAL MAIL GROUP LTD,02/07/2012,45000,Postages Direct Costs,Finance Department,Housing Benefits,637.51
2503916,ROYAL MAIL GROUP LTD,26/07/2012,45000,Postages Direct Costs,Finance Department,Finance Ap Centre of Excellence,910.14
2502377,ROYAL MENCAP SOCIETY#MENCAP,04/07/2012,54301,Residential Provision,Adult Services,LD Purchaser Residential Care,"10,938.60"
2502374,ROYAL MENCAP SOCIETY#MENCAP,04/07/2012,54301,Residential Provision,Adult Services,LD Purchaser Residential Care,"19,736.25"
2502348,ROYAL MENCAP SOCIETY#MENCAP,04/07/2012,54301,Residential Provision,Adult Services,LD Purchaser Residential Care,"10,011.60"
2504329,S & D PRIVATE HIRE,09/07/2012,33201,Transport Hire,Environmental Services,SNT Adult Servs,706.00
2504276,S & D PRIVATE HIRE,09/07/2012,33201,Transport Hire,Environmental Services,SNT Adult Servs,"3,026.00"
2520814,S & D PRIVATE HIRE,30/07/2012,33201,Transport Hire,Environmental Services,SNT Adult Servs,"5,435.50"
2513777,REDACTED - PERSONAL DATA#BALANCE ME,26/07/2012,45914,Commissioning Worklessness,Development & Regen,The Work Programme,"1,155.00"
2498496,SAFEHANDS NETWORK LTD,02/07/2012,52200,Contracted Services,Adult Services,OA  Home Care Services external provision,"3,278.37"
2510355,SAFEHANDS NETWORK LTD,16/07/2012,52200,Contracted Services,Adult Services,OA  Home Care Services external provision,"4,559.96"
2506487,SANCTUARY CARR-GOMM#THE SANCTUARY GROUP,12/07/2012,52200,Contracted Services,Adult Services,Supporting People  Capital Financing,"10,654.09"
2519073,SANTIA TRAINING SERVICES,26/07/2012,19100,Training Exps Tuition Fees,Property Services,Operational Facilities Management,"4,964.51"
2517757,SARABEC LIMITED,30/07/2012,44051,Clients Aids & Adaptations,Adult Services,Independent,"1,308.05"
2520816,SCHOOLS DIRECT,30/07/2012,33201,Transport Hire,Environmental Services,SNT Adult Servs,"1,260.00"
2504281,SCHOOLS DIRECT,09/07/2012,33201,Transport Hire,Environmental Services,SNT Adult Servs,"1,440.00"
2515828,SELF UNLIMITED,23/07/2012,52200,Contracted Services,Adult Services,LD Purchaser Day Services,"1,380.75"
2515832,SELF UNLIMITED,23/07/2012,52200,Contracted Services,Adult Services,LD Purchaser Day Services,"1,380.75"
2504273,SERCO LEISURE OPERATING LTD#2,09/07/2012,48629,Miscellaneous Expenses,Finance Department,Corporate Smartcard,"3,853.60"
2506199,SEVA LINE,12/07/2012,52200,Contracted Services,Adult Services,OA  Home Care Services external provision,"4,323.22"
2506194,SEVACARE UK LTD,12/07/2012,52200,Contracted Services,Adult Services,OA  Home Care Services external provision,"30,258.70"
2504284,REDACTED - PERSONAL DATA,09/07/2012,33201,Transport Hire,Environmental Services,SNT Adult Servs,"1,808.00"
2520817,REDACTED - PERSONAL DATA,30/07/2012,33201,Transport Hire,Environmental Services,SNT Adult Servs,"1,695.00"
2522392,SHANLEYS LTD,30/07/2012,48203,Marketing,Central Services,Marketing  General,835.00
2505810,SHANLEYS LTD,09/07/2012,48203,Marketing,Central Services,Marketing  General,"1,451.00"
2505806,SHANLEYS LTD,09/07/2012,48203,Marketing,Central Services,Marketing  General,"1,328.00"
2498594,SHARP ASPHALT CO LTD,02/07/2012,Z6008,Expense AP Accrual,Bolton MBC Balance Sheet,Bolton MBC Balance Sheet,"1,430.00"
2513812,SHARP ASPHALT CO LTD,19/07/2012,Z6008,Expense AP Accrual,Bolton MBC Balance Sheet,Bolton MBC Balance Sheet,"2,365.13"
2513813,SHARP ASPHALT CO LTD,19/07/2012,Z6008,Expense AP Accrual,Bolton MBC Balance Sheet,Bolton MBC Balance Sheet,"21,494.38"
2517768,SHORROCK TRICHEM,30/07/2012,40100,Operational Equipment Purchase,Environmental Services,Markets  Rent Account,598.00
2517651,SHOWSEC INTERNATIONAL LIMITED,30/07/2012,48203,Marketing,Central Services,Marketing  General,"1,233.20"
2517648,SHOWSEC INTERNATIONAL LIMITED,30/07/2012,48203,Marketing,Central Services,Marketing  General,"2,340.53"
2502703,SIGNHEALTH,19/07/2012,52000,Vol Assoc Grants  General,Adult Services,STARS & ILS  Management,"1,058.58"
2507180,SIMPLYMED LTD,19/07/2012,44051,Clients Aids & Adaptations,Adult Services,AD ICES,"1,341.00"
2518871,SITEXORBIS LIMITED,26/07/2012,25100,Security Systems  Purchases,Housing GRF,Access & Advice Caravan Sites,730.00
2502877,SLC GROUP#PARAGON LIMITED,23/07/2012,52200,Contracted Services,Adult Services,MH Residential External Provision,"1,940.68"
2506224,SLC GROUP#PARAGON LIMITED,12/07/2012,52200,Contracted Services,Adult Services,MH Residential External Provision,"1,029.60"
2513819,SLC GROUP#PARAGON LIMITED,26/07/2012,52200,Contracted Services,Adult Services,MH Residential External Provision,"1,470.00"
2506483,SLC PARAGON,12/07/2012,52200,Contracted Services,Adult Services,Supporting People  Capital Financing,"3,754.78"
2514179,SMITHBUILD (NW) LTD,23/07/2012,Z1051,Work in Progress Additions,Housing GRF,Capital  General Fund,"3,227.00"
2505365,SMITHBUILD (NW) LTD,09/07/2012,Z1051,Work in Progress Additions,Housing GRF,Capital  General Fund,"4,337.00"
2513787,SMP PLAYGROUNDS LIMITED,26/07/2012,40601,General Materials,Environmental Services,Activities and Operations,814.00
2509695,SO CONSULTED#REDACTED - PERSONAL DATA,16/07/2012,44054,Other Clients Services,Children's Services,Youth Offending Team,"1,000.00"
2504286,REDACTED - PERSONAL DATA,09/07/2012,33201,Transport Hire,Environmental Services,SNT Adult Servs,"1,328.00"
2520819,REDACTED - PERSONAL DATA,30/07/2012,33201,Transport Hire,Environmental Services,SNT Adult Servs,"1,245.00"
2520633,SOLON SECURITY LTD,30/07/2012,40100,Operational Equipment Purchase,Chief Executives Department,Community Safety,613.50
2518115,SOUTHERNS OFFICE INTERIORS LTD,26/07/2012,20101,Programmed Maint. Work,Property Services,Accomm Rationalisation Strategy,"3,672.00"
2504315,SPECIAL NEEDS UNDER FIVES#SNUFS,09/07/2012,52200,Contracted Services,Children's Services,Admin Commissioning,"10,000.00"
2517400,SPECTRA SECURITY LTD,23/07/2012,25107,Secure Doors,Property Services,Admin Buildings  General,552.00
2498660,SPECTRA SECURITY LTD,02/07/2012,25107,Secure Doors,Property Services,Admin Buildings  General,612.00
2498675,SPECTRA SECURITY LTD,02/07/2012,25107,Secure Doors,Property Services,Admin Buildings  General,897.00
2503853,SPECTRA SECURITY LTD,09/07/2012,25107,Secure Doors,Property Services,Town Hall,747.00
2506485,ST VINCENTS HOUSING ASSOCIATION LTD,12/07/2012,52200,Contracted Services,Adult Services,Supporting People  Capital Financing,"3,049.24"
2513816,ST VINCENTS HOUSING ASSOCIATION LTD,26/07/2012,52210,Contracted Services  Rental Voids,Adult Services,LD Purchaser Supported Housing,786.00
2505420,STANNAH LIFT SERVICES LTD,09/07/2012,Z1051,Work in Progress Additions,Housing GRF,Capital  General Fund,"2,185.00"
2505383,STANNAH LIFT SERVICES LTD,09/07/2012,Z1051,Work in Progress Additions,Housing GRF,Capital  General Fund,"2,347.00"
2505391,STANNAH LIFT SERVICES LTD,09/07/2012,Z1051,Work in Progress Additions,Housing GRF,Capital  General Fund,"2,452.00"
2505401,STANNAH LIFT SERVICES LTD,09/07/2012,Z1051,Work in Progress Additions,Housing GRF,Capital  General Fund,539.90
2519352,STANNAH LIFT SERVICES LTD,26/07/2012,Z1051,Work in Progress Additions,Housing GRF,Capital  General Fund,"2,062.00"
2519353,STANNAH LIFT SERVICES LTD,26/07/2012,Z1051,Work in Progress Additions,Housing GRF,Capital  General Fund,"2,124.00"
2514178,STANNAH LIFT SERVICES LTD,23/07/2012,Z1051,Work in Progress Additions,Housing GRF,Capital  General Fund,"1,871.00"
2520822,STANS MINI-BUS,30/07/2012,33201,Transport Hire,Environmental Services,SNT Adult Servs,"1,706.00"
2504301,STANS MINI-BUS,09/07/2012,33201,Transport Hire,Environmental Services,SNT Adult Servs,"2,016.00"
2507519,STEVE SCOTT,19/07/2012,48510,Consultancy Fees,Adult Services,AD Transforming Social Care,"1,455.80"
2506573,STOCKPORT PSYCHOLOGY SERVICES,12/07/2012,48509,Other Fees,Children's Services,Management Team,565.75
2506561,STOCKPORT PSYCHOLOGY SERVICES,12/07/2012,48509,Other Fees,Children's Services,Management Team,643.50
2518994,STOCKPORT PSYCHOLOGY SERVICES,26/07/2012,48509,Other Fees,Children's Services,Management Team,979.33
2506997,STOCKPORT PSYCHOLOGY SERVICES,12/07/2012,48509,Other Fees,Children's Services,Management Team,"1,466.00"
2506488,STONHAM,12/07/2012,52200,Contracted Services,Adult Services,Supporting People  Capital Financing,"40,065.39"
2504303,STREET CARS#REDACTED - PERSONAL DATA,09/07/2012,33201,Transport Hire,Environmental Services,SNT Adult Servs,"9,920.30"
2520827,STREET CARS#REDACTED - PERSONAL DATA,30/07/2012,33201,Transport Hire,Environmental Services,SNT Adult Servs,"8,015.40"
2507107,SUB SOIL CONSULTANCY SURVEYS LTD,19/07/2012,Z1051,Work in Progress Additions,Environmental Services,Environmental Services Balance sheet,980.00
2503090,SUTCLIFFE PLAY LTD,16/07/2012,40601,General Materials,Environmental Services,Activities and Operations,"1,586.20"
2517534,SUTCLIFFE PLAY LTD,30/07/2012,40601,General Materials,Environmental Services,Activities and Operations,"1,430.00"
2503679,SYKES CHEMIST LTD,09/07/2012,52000,Vol Assoc Grants  General,Adult Services,Drugs Pooled Treatment Budget,"1,704.80"
2503668,SYKES CHEMIST LTD,05/07/2012,52000,Vol Assoc Grants  General,Adult Services,Drugs Pooled Treatment Budget,562.50
2515739,SYKES CHEMIST LTD,23/07/2012,52200,Contracted Services,Adult Services,Drugs Pooled Treatment Budget,"1,370.60"
2503682,SYKES CHEMIST LTD,09/07/2012,52000,Vol Assoc Grants  General,Adult Services,Drugs Pooled Treatment Budget,685.10
2517631,SYMOLOGY LTD,30/07/2012,20501,Engineering Work,Environmental Services,Highway Regulation & Inspection,860.00
2507187,SYMPHONY HOUSING GROUP,16/07/2012,52210,Contracted Services  Rental Voids,Adult Services,LD Provider  Supported Housing,"2,056.78"
2506490,SYMPHONY HOUSING GROUP,12/07/2012,52200,Contracted Services,Adult Services,Supporting People  Capital Financing,"8,241.69"
2506201,SYNERGY CREATIVE DESIGN & MARKETING LTD,16/07/2012,48201,Property Advertising,Housing GRF,Find a Home,556.40
2506494,T LOWE & SON LIMITED,12/07/2012,20100,Day To Day Maintenance,Central Corporate,Land & Property,"3,407.22"
2510870,T LOWE & SON LIMITED,16/07/2012,20100,Day To Day Maintenance,Central Corporate,Land & Property,"2,692.50"
2502401,T LOWE & SON LIMITED,05/07/2012,20100,Day To Day Maintenance,Central Corporate,Land & Property,630.33
2502404,T LOWE & SON LIMITED,05/07/2012,20100,Day To Day Maintenance,Central Corporate,Land & Property,712.89
2504307,REDACTED - PERSONAL DATA,09/07/2012,33201,Transport Hire,Environmental Services,SNT Adult Servs,912.00
2520830,REDACTED - PERSONAL DATA,30/07/2012,33201,Transport Hire,Environmental Services,SNT Adult Servs,945.00
2520599,TALIS INFORMATION LIMITED,30/07/2012,45401,Computer Maintenance,Finance Department,LMA External Funded Projects,525.00
2511407,TALIS INFORMATION LIMITED,19/07/2012,45401,Computer Maintenance,Finance Department,Libraries Info. Systems,"4,852.50"
2513757,TARMAC LIMITED#CMS POZAMENT,26/07/2012,Z6008,Expense AP Accrual,Bolton MBC Balance Sheet,Bolton MBC Balance Sheet,739.98
2513797,TARMAC LIMITED#CMS POZAMENT,26/07/2012,Z6008,Expense AP Accrual,Bolton MBC Balance Sheet,Bolton MBC Balance Sheet,"1,197.23"
2518419,TARMAC LIMITED#CMS POZAMENT,30/07/2012,Z6008,Expense AP Accrual,Bolton MBC Balance Sheet,Bolton MBC Balance Sheet,560.78
2510923,TARMAC LIMITED#CMS POZAMENT,23/07/2012,Z6008,Expense AP Accrual,Bolton MBC Balance Sheet,Bolton MBC Balance Sheet,550.23
2510913,TARMAC LIMITED#CMS POZAMENT,23/07/2012,Z6008,Expense AP Accrual,Bolton MBC Balance Sheet,Bolton MBC Balance Sheet,852.88
2507722,TARMAC LIMITED#CMS POZAMENT,19/07/2012,Z6008,Expense AP Accrual,Bolton MBC Balance Sheet,Bolton MBC Balance Sheet,"1,153.38"
2507717,TARMAC LIMITED#CMS POZAMENT,19/07/2012,Z6008,Expense AP Accrual,Bolton MBC Balance Sheet,Bolton MBC Balance Sheet,"1,047.17"
2507714,TARMAC LIMITED#CMS POZAMENT,19/07/2012,Z6008,Expense AP Accrual,Bolton MBC Balance Sheet,Bolton MBC Balance Sheet,591.65
2507719,TARMAC LIMITED#CMS POZAMENT,19/07/2012,Z6008,Expense AP Accrual,Bolton MBC Balance Sheet,Bolton MBC Balance Sheet,925.22
2507686,TASTIES OF CHESTER LIMITED,19/07/2012,41101,Catering ProvisionsFood,Environmental Services,Catering,940.53
2520497,TASTIES OF CHESTER LIMITED,30/07/2012,41101,Catering ProvisionsFood,Environmental Services,Catering,699.99
2520505,TASTIES OF CHESTER LIMITED,30/07/2012,41101,Catering ProvisionsFood,Environmental Services,Catering,"1,040.51"
2520561,TASTIES OF CHESTER LIMITED,30/07/2012,41101,Catering ProvisionsFood,Environmental Services,Catering,709.45
2519091,TAURUS PROMOTIONS LIMITED,26/07/2012,44050,Clients Holidays,Children's Services,Music Serv  Events and External Funding,582.75
2513302,TAYLOR BROS (TREES),19/07/2012,52200,Contracted Services,Environmental Services,Activities and Operations,"8,000.00"
2520590,TELECARS BOLTON,30/07/2012,33201,Transport Hire,Environmental Services,SNT Adult Servs,756.00
2498406,TELECARS BOLTON,02/07/2012,33201,Transport Hire,Environmental Services,SNT Adult Servs,952.56
2518888,TELECARS BOLTON,26/07/2012,33201,Transport Hire,Environmental Services,SNT Adult Servs,810.00
2504321,TELECARS BOLTON,09/07/2012,33201,Transport Hire,Environmental Services,SNT Adult Servs,782.10
2505422,TERBERG MATEC UK,09/07/2012,Z1051,Work in Progress Additions,Environmental Services,Environmental Services Balance sheet,"14,000.00"
2511386,TERBERG MATEC UK,19/07/2012,Z1051,Work in Progress Additions,Environmental Services,Environmental Services Balance sheet,"14,000.00"
2510312,TERBERG MATEC UK,16/07/2012,Z1051,Work in Progress Additions,Environmental Services,Environmental Services Balance sheet,"14,000.00"
2512790,TERBERG MATEC UK,19/07/2012,Z1051,Work in Progress Additions,Environmental Services,Environmental Services Balance sheet,"14,000.00"
2505988,THE BOND BOARD LTD,12/07/2012,52200,Contracted Services,Adult Services,Supporting People  Capital Financing,"11,603.66"
2502356,THE BUNGALOW RESIDENTIAL HOME,04/07/2012,54301,Residential Provision,Adult Services,LD Purchaser Residential Care,"1,866.90"
2502356,THE BUNGALOW RESIDENTIAL HOME,04/07/2012,54301,Residential Provision,Adult Services,OA  External Provision Residential,"18,669.00"
2502356,THE BUNGALOW RESIDENTIAL HOME,04/07/2012,54301,Residential Provision,Adult Services,PD Purchaser Residential Care,"1,866.90"
2503275,THE CLOUGH RESIDENTIAL HOME,05/07/2012,54301,Residential Provision,Adult Services,OA  External Provision Residential,"4,853.94"
2504085,THE COLUMBARIA COMPANY,12/07/2012,40610,Direct Materials,Environmental Services,Bereavement Services,837.00
2515613,THE CORPORATE GROUP#CORPORATE PRODUCTS LTD,23/07/2012,48509,Other Fees,Development & Regen,Project Revenue Account,"5,265.00"
2513794,THE GREATER MANCHESTER COMBINED AUTHORITY,23/07/2012,Z1051,Work in Progress Additions,Highways,Stores,"1,739.46"
2515693,THE GREENHOUSE,23/07/2012,48509,Other Fees,Development & Regen,Adult Education,"1,000.00"
2504297,THE LEAVING CARE TEAM,09/07/2012,52300,Client Support Costs,Children's Services,Child Prot Leaving Care Team,"2,148.73"
2515812,THE LEAVING CARE TEAM,23/07/2012,52300,Client Support Costs,Children's Services,Child Prot Leaving Care Team,"2,018.84"
2520861,THE LOCAL CARE COMPANY (BOLTON) LTD,30/07/2012,52200,Contracted Services,Adult Services,OA  Home Care Services external provision,"24,279.05"
2517770,THE MUSIC CELLAR,30/07/2012,40610,Direct Materials,Children's Services,Music Serv  Events and External Funding,"3,125.00"
2498342,THE NATIONAL SKILLS ACADEMY,30/07/2012,19100,Training Exps Tuition Fees,Adult Services,Staff Development  Adults,"2,535.00"
2520592,THE NEWSPAPER LICENSING AGENCY LIMITED,30/07/2012,47200,General Subscriptions,Central Services,Communication & Marketing Agency,"1,400.00"
2506441,THE NURTURE GROUP NETWORK LIMITED,12/07/2012,19105,Training Exp  Books Etc,Children's Services,Education Psychology Service,"2,666.67"
2515678,THE OCTAGON,23/07/2012,47103,Miscellaneous Grants,Chief Executives Department,Voluntary Sector Grants,"36,345.00"
2512894,THE RICHARD STONE PARTNERSHIP,19/07/2012,48509,Other Fees,Development & Regen,Project Revenue Account,"1,000.00"
2502380,THE TOGETHER TRUST#WAS BGWS,04/07/2012,54301,Residential Provision,Adult Services,LD Purchaser Residential Care,"17,932.20"
2515714,THE TRAFFIC ENFORCEMENT CENTRE,23/07/2012,48513,Traffic Enforcement Centre,Environmental Services,Parking Services  On Street,"10,000.00"
2498569,THEBIGWORD#THE BIG WORD#THEBIGWORD INTERPRETING SERVICES LTD,02/07/2012,44054,Other Clients Services,Finance Department,C.R.M. Operations,545.56
2514319,THERAPEUTIC ENVIRONMENTS LTD,30/07/2012,54301,Residential Provision,Adult Services,Alcohol Rehab Budget,"1,667.90"
2514316,THERAPEUTIC ENVIRONMENTS LTD,30/07/2012,54301,Residential Provision,Adult Services,Alcohol Rehab Budget,"1,703.33"
2511398,THERAPEUTIC ENVIRONMENTS LTD,19/07/2012,54301,Residential Provision,Adult Services,Alcohol Rehab Budget,"1,713.33"
2498474,THISTLETHWAITE TYRES & EXHAUSTS#FACTOR MICHELDEVER TYRE SVS LTD,02/07/2012,31303,Tyres,Environmental Services,Transport Support Service,"2,920.63"
2522630,THISTLETHWAITE TYRES & EXHAUSTS#FACTOR MICHELDEVER TYRE SVS LTD,30/07/2012,31303,Tyres,Environmental Services,Transport Support Service,"1,958.97"
2514161,TOM GALLAGHER LTD,23/07/2012,Z1051,Work in Progress Additions,Housing GRF,Capital  General Fund,"2,203.18"
2505433,TOM GALLAGHER LTD,09/07/2012,Z1051,Work in Progress Additions,Housing GRF,Capital  General Fund,"1,500.00"
2519760,TONGE ACTION GROUP,30/07/2012,48509,Other Fees,Housing GRF,Neighbourhood Management Project,"2,000.00"
2517389,TOTAL GAS & POWER LTD,23/07/2012,21200,Gas  General,Housing GRF,Communal Services Capital And Admin.,554.99
2502664,TRAKM8 LIMITED,12/07/2012,45409,Information and Communication Technology,Environmental Services,Transport Support Service,"2,663.10"
2502320,TRANSPORT FOR GREATER MANCHESTER,05/07/2012,34302,Members  Bus Fares,Central Corporate,Members,"2,840.00"
2514187,TRANSPORT FOR GREATER MANCHESTER,23/07/2012,40102,Operational Equipment Rental,Development & Regen,Metro Shuttle Bus,"9,936.00"
2509732,TREESCAPE NORTH WEST LTD,16/07/2012,52200,Contracted Services,Environmental Services,Activities and Operations,"5,240.00"
2507512,TURNING POINT (SERVICES) LIMITED,19/07/2012,54301,Residential Provision,Adult Services,Drugs and Alcohol Section 75 Agreement,"1,590.00"
2503491,TV LICENSING,05/07/2012,48629,Miscellaneous Expenses,Finance Department,LMA Library Mgmt,"1,450.50"
2512852,UK ATHLETICS LIMITED,19/07/2012,53000,Private Contracted Services,Environmental Services,Assets,500.00
2510893,UNITED UTILITIES WATER PLC#1,16/07/2012,21200,Gas  General,Environmental Services,Mngmnt & Admin Overhead,"14,028.25"
2510893,UNITED UTILITIES WATER PLC#1,16/07/2012,21100,Electricity  General,Property Services,Admin Buildings  General,"10,457.88"
2510893,UNITED UTILITIES WATER PLC#1,16/07/2012,21100,Electricity  General,Property Services,Adult's General,"9,903.77"
2510893,UNITED UTILITIES WATER PLC#1,16/07/2012,21100,Electricity  General,Housing GRF,Communal Services Capital And Admin.,"4,599.88"
2510893,UNITED UTILITIES WATER PLC#1,16/07/2012,21100,Electricity  General,Central Corporate,Land & Property,"1,001.29"
2522482,UNITED UTILITIES WATER PLC#1,30/07/2012,22200,Water Charges  Metered,Children's Services,Grt Lever Childrens Centre,"2,811.24"
2506206,UNITED UTILITIES WATER PLC#1,12/07/2012,22200,Water Charges  Metered,Children's Services,Alexandra CC,757.36
2514361,UNIVERSAL BODY REPAIRS LTD,23/07/2012,36200,Uninsured Losses  Vehicles,Environmental Services,Transport Support Service,545.00
2498635,URBAN OUTREACH (BOLTON),02/07/2012,55700,Grant Funded Expenditure,Chief Executives Department,Community Safety,"15,000.00"
2506493,URBAN OUTREACH (BOLTON),12/07/2012,52200,Contracted Services,Adult Services,Supporting People  Capital Financing,"4,278.02"
2509226,URBAN OUTREACH (BOLTON),16/07/2012,52200,Contracted Services,Children's Services,Admin Commissioning,"12,500.00"
2506551,URBAN VISION PARTNERSHIP LTD#GMGU,19/07/2012,53102,Agency Staff  Other,Property Services,Accomm Rationalisation Strategy,"6,052.88"
2509769,REDACTED - PERSONAL DATA,16/07/2012,22003,Ground Rent,Adult Services,Independent,"1,833.33"
2518966,REDACTED - PERSONAL DATA,26/07/2012,48509,Other Fees,Children's Services,Management Team,833.55
2498623,VIRGIN MEDIA LTD,02/07/2012,Z1051,Work in Progress Additions,Development & Regen,Development & Regeneration Capital,"1,479.85"
2502366,VITALISE ELLERSLIE COURT,04/07/2012,54301,Residential Provision,Adult Services,PD Purchaser Residential Care,"3,402.90"
2503496,VOICEPOWER,05/07/2012,45405,Computer Consumables,Adult Services,Home Support Reablement,"1,516.00"
2514559,W & S C JOBSON,23/07/2012,52200,Contracted Services,Environmental Services,Transport Support Service,773.50
2515868,W & S C JOBSON,23/07/2012,52200,Contracted Services,Environmental Services,Transport Support Service,995.68
2507751,W CRAVEN & SON,26/07/2012,20100,Day To Day Maintenance,Property Services,Howell Croft House  Le Mans Crescent,"4,180.00"
2507785,W CRAVEN & SON,26/07/2012,20100,Day To Day Maintenance,Property Services,Le Mans Crescent  General,"2,360.00"
2507801,W CRAVEN & SON,26/07/2012,20100,Day To Day Maintenance,Property Services,Le Mans Crescent  General,"1,435.00"
2522692,WALTER FORSHAW LTD#2,30/07/2012,Z1051,Work in Progress Additions,Central Corporate,Corporate Property Balance Sheet,"36,441.20"
2509284,WALTONS THE CATERERS,16/07/2012,41101,Catering ProvisionsFood,Children's Services,Technical Innovation Centre,815.15
2502382,WESTFIELD MEWS CARE HOME,04/07/2012,54301,Residential Provision,Adult Services,MH Residential External Provision,"5,365.90"
2504308,WESTHOUGHTON COACH HIRE,09/07/2012,33201,Transport Hire,Environmental Services,SNT Adult Servs,"1,548.00"
2520834,WESTHOUGHTON COACH HIRE,30/07/2012,33201,Transport Hire,Environmental Services,SNT Adult Servs,"1,354.50"
2519096,WESTHOUGHTON VISITING SERVICE,26/07/2012,52200,Contracted Services,Adult Services,OA  Day Care Provision  external,"9,250.00"
2506148,WIGAN PIER PROMOTIONS,19/07/2012,48200,Advertising General,Environmental Services,Markets  Rent Account,"1,325.00"
2504309,WILLOWS MINIBUS,09/07/2012,33201,Transport Hire,Environmental Services,SNT Adult Servs,"1,502.00"
2520837,WILLOWS MINIBUS,30/07/2012,33201,Transport Hire,Environmental Services,SNT Adult Servs,"1,380.00"
2498543,WINGS EDUCATION LTD,02/07/2012,52000,Vol Assoc Grants  General,Children's Services,Res Serv Agency Placements,"16,037.00"
2507806,WINGS EDUCATION LTD,16/07/2012,52000,Vol Assoc Grants  General,Children's Services,Res Serv Agency Placements,"35,173.00"
2522783,WITHINS RESIDENTIAL HOME,30/07/2012,54301,Residential Provision,Adult Services,OA  External Provision Residential,"4,922.58"
2517767,WJ ROADMARKINGS LTD,30/07/2012,52200,Contracted Services,Environmental Services,Activities and Operations,648.00
2519058,WOODLANDS CARE GROUP LTD,26/07/2012,54301,Residential Provision,Adult Services,OA  External Provision Residential,"4,848.09"
2502385,WOODLANDS HOUSE RESIDENTIAL HOME LTD,04/07/2012,54301,Residential Provision,Adult Services,OA  External Provision Residential,"27,711.92"
2508296,XEROX (UK) LTD,16/07/2012,43030,Photocopying Lease/Maintenance,Chief Executives Department,MFD,"31,528.72"
2520839,Y & S PRIVATE HIRE,30/07/2012,33201,Transport Hire,Environmental Services,SNT Adult Servs,"3,640.00"
2504311,Y & S PRIVATE HIRE,09/07/2012,33201,Transport Hire,Environmental Services,SNT Adult Servs,"3,033.00"
2504197,YMCA,09/07/2012,52200,Contracted Services,Children's Services,Admin Commissioning,"18,000.00"
2499384,YORKSHIRE PURCHASING ORGANISATION,24/07/2012,41101,Catering ProvisionsFood,Environmental Services,Catering,598.93
2504173,YORKSHIRE PURCHASING ORGANISATION,24/07/2012,41101,Catering ProvisionsFood,Environmental Services,Community Meals,596.88
2518717,YORKSHIRE PURCHASING ORGANISATION,31/07/2012,41101,Catering ProvisionsFood,Environmental Services,Community Meals,534.39
2503585,YORKSHIRE PURCHASING ORGANISATION,24/07/2012,41101,Catering ProvisionsFood,Environmental Services,Catering,524.06
2503602,YORKSHIRE PURCHASING ORGANISATION,24/07/2012,41101,Catering ProvisionsFood,Environmental Services,Catering,514.06
2506816,YORKSHIRE PURCHASING ORGANISATION,24/07/2012,41101,Catering ProvisionsFood,Environmental Services,Catering,557.40
2503566,YORKSHIRE PURCHASING ORGANISATION,24/07/2012,41101,Catering ProvisionsFood,Environmental Services,Catering,697.91
2503578,YORKSHIRE PURCHASING ORGANISATION,24/07/2012,41101,Catering ProvisionsFood,Environmental Services,Catering,589.94
2499518,YORKSHIRE PURCHASING ORGANISATION,24/07/2012,Z1051,Work in Progress Additions,Adult Services,Adult Services Balance Sheet,552.90
2504155,YORKSHIRE PURCHASING ORGANISATION,24/07/2012,41101,Catering ProvisionsFood,Adult Services,LD Provider  ShortTerm Breaks,564.20
2503603,YORKSHIRE PURCHASING ORGANISATION,24/07/2012,41101,Catering ProvisionsFood,Environmental Services,Catering,726.06
2503619,YORKSHIRE PURCHASING ORGANISATION,24/07/2012,41101,Catering ProvisionsFood,Environmental Services,Catering,508.34
2506785,YORKSHIRE PURCHASING ORGANISATION,24/07/2012,41101,Catering ProvisionsFood,Environmental Services,Catering,592.14
2506793,YORKSHIRE PURCHASING ORGANISATION,24/07/2012,41101,Catering ProvisionsFood,Environmental Services,Catering,590.34
2506772,YORKSHIRE PURCHASING ORGANISATION,24/07/2012,41101,Catering ProvisionsFood,Environmental Services,Catering,641.45
2518269,YORKSHIRE PURCHASING ORGANISATION,31/07/2012,41101,Catering ProvisionsFood,Environmental Services,Catering,501.05
2518315,YORKSHIRE PURCHASING ORGANISATION,31/07/2012,41101,Catering ProvisionsFood,Environmental Services,Catering,638.33
2518284,YORKSHIRE PURCHASING ORGANISATION,31/07/2012,41101,Catering ProvisionsFood,Environmental Services,Catering,502.12
2518366,YORKSHIRE PURCHASING ORGANISATION,31/07/2012,41101,Catering ProvisionsFood,Adult Services,OA  Darley Court Intermediate Care,579.00
2499539,YORKSHIRE PURCHASING ORGANISATION,24/07/2012,41101,Catering ProvisionsFood,Adult Services,OA  Alderbank  Residential,513.38
